Workbook

Sheet Todo
A1: Rubrik | B1: Kategorie | C1: Aufgabe | D1: Frequenz | E1: Wer macht es? | F1: Ortsgebunden | G1: Dauer (in Minuten) | H1: Dauer pro Jahr (in Stunden) | I1: Dauer pro Jahr (in Tagen) | K1: Annahme
A2: Familien-Organisation | B2: Auto | C2: Auto putzen | D2: vierteljährlich | E2: Anton | F2: ja | G2: 60 | H2: =ROUND(VLOOKUP(Tabelle1[[#This Row],[Frequenz]],K:L,2,0)*Tabelle1[[#This Row],[Dauer (in Minuten)]]/60,1) -> 4 | I2: =ROUND(Tabelle1[[#This Row],[Dauer pro Jahr (in Stunden)]]/$L$2,1) -> 0.5 | K2: ein Tag abzüglich Schlaf, Arbeit und Sonstigem hat … Stunden: | L2: 8
A3: Familien-Organisation | B3: Auto | C3: Kindersitze: putzen, einstellen, austauschen | D3: vierteljährlich | E3: Anton | F3: ja | G3: 20 | H3: =ROUND(VLOOKUP(Tabelle1[[#This Row],[Frequenz]],K:L,2,0)*Tabelle1[[#This Row],[Dauer (in Minuten)]]/60,1) -> 1.3 | I3: =ROUND(Tabelle1[[#This Row],[Dauer pro Jahr (in Stunden)]]/$L$2,1) -> 0.2 | M3: (Wert bei Bedarf ändern)
A4: Familien-Organisation | B4: Auto | C4: Reifen wechseln: selber machen oder sich um Werkstatt-Termin kümmern | D4: halbjährlich | E4: Anton | F4: ja | G4: 120 | H4: =ROUND(VLOOKUP(Tabelle1[[#This Row],[Frequenz]],K:L,2,0)*Tabelle1[[#This Row],[Dauer (in Minuten)]]/60,1) -> 4 | I4: =ROUND(Tabelle1[[#This Row],[Dauer pro Jahr (in Stunden)]]/$L$2,1) -> 0.5
A5: Familien-Organisation | B5: Auto | C5: Tanken | D5: wöchentlich | E5: Anton | F5: ja | G5: 20 | H5: =ROUND(VLOOKUP(Tabelle1[[#This Row],[Frequenz]],K:L,2,0)*Tabelle1[[#This Row],[Dauer (in Minuten)]]/60,1) -> 17.3 | I5: =ROUND(Tabelle1[[#This Row],[Dauer pro Jahr (in Stunden)]]/$L$2,1) -> 2.2 | K5: Frequenz | L5: Faktor
A6: Familien-Organisation | B6: Auto | C6: TÜV | D6: alle zwei Jahre | E6: Anton | F6: ja | G6: 120 | H6: =ROUND(VLOOKUP(Tabelle1[[#This Row],[Frequenz]],K:L,2,0)*Tabelle1[[#This Row],[Dauer (in Minuten)]]/60,1) -> 1 | I6: =ROUND(Tabelle1[[#This Row],[Dauer pro Jahr (in Stunden)]]/$L$2,1) -> 0.1 | K6: alle zwei Jahre | L6: 0.5
A7: Familien-Organisation | B7: Auto | C7: Versicherungen: überprüfen, bezahlen, abheften | D7: jährlich | E7: Anton | F7: nein | G7: 15 | H7: =ROUND(VLOOKUP(Tabelle1[[#This Row],[Frequenz]],K:L,2,0)*Tabelle1[[#This Row],[Dauer (in Minuten)]]/60,1) -> 0.3 | I7: =ROUND(Tabelle1[[#This Row],[Dauer pro Jahr (in Stunden)]]/$L$2,1) -> 0 | K7: jährlich | L7: 1
A8: Familien-Organisation | B8: Auto | C8: Werkstatttermine Auto, akutes Problem: Termin ausmachen, Auto hinbringen, wieder abholen, Rechnung bezahlen | D8: akut | E8: Anton | F8: ja | G8: 50 | H8: =ROUND(VLOOKUP(Tabelle1[[#This Row],[Frequenz]],K:L,2,0)*Tabelle1[[#This Row],[Dauer (in Minuten)]]/60,1) -> 0.8 | I8: =ROUND(Tabelle1[[#This Row],[Dauer pro Jahr (in Stunden)]]/$L$2,1) -> 0.1 | K8: vierteljährlich | L8: 4
A9: Familien-Organisation | B9: Finanzen | C9: Bargeld abheben | D9: wöchentlich | E9: Beide | F9: nein | G9: 10 | H9: =ROUND(VLOOKUP(Tabelle1[[#This Row],[Frequenz]],K:L,2,0)*Tabelle1[[#This Row],[Dauer (in Minuten)]]/60,1) -> 8.7 | I9: =ROUND(Tabelle1[[#This Row],[Dauer pro Jahr (in Stunden)]]/$L$2,1) -> 1.1 | K9: monatlich | L9: 12
A10: Familien-Organisation | B10: Finanzen | C10: Beiträge Kindergarten / Hort / Vereine organisieren, überweisen | D10: jährlich | E10: Anton | F10: nein | G10: 20 | H10: =ROUND(VLOOKUP(Tabelle1[[#This Row],[Frequenz]],K:L,2,0)*Tabelle1[[#This Row],[Dauer (in Minuten)]]/60,1) -> 0.3 | I10: =ROUND(Tabelle1[[#This Row],[Dauer pro Jahr (in Stunden)]]/$L$2,1) -> 0 | K10: wöchentlich | L10: 52
A11: Familien-Organisation | B11: Finanzen | C11: Belege für Steuer sammeln | D11: vierteljährlich | E11: Laura | F11: nein | G11: 15 | H11: =ROUND(VLOOKUP(Tabelle1[[#This Row],[Frequenz]],K:L,2,0)*Tabelle1[[#This Row],[Dauer (in Minuten)]]/60,1) -> 1 | I11: =ROUND(Tabelle1[[#This Row],[Dauer pro Jahr (in Stunden)]]/$L$2,1) -> 0.1 | K11: täglich | L11: 365
A12: Familien-Organisation | B12: Finanzen | C12: Kinder-Sparbücher füllen, pflegen, überprüfen | D12: vierteljährlich | E12: Laura | F12: nein | G12: 15 | H12: =ROUND(VLOOKUP(Tabelle1[[#This Row],[Frequenz]],K:L,2,0)*Tabelle1[[#This Row],[Dauer (in Minuten)]]/60,1) -> 1 | I12: =ROUND(Tabelle1[[#This Row],[Dauer pro Jahr (in Stunden)]]/$L$2,1) -> 0.1 | K12: halbjährlich | L12: 2
A13: Familien-Organisation | B13: Finanzen | C13: Kontenführung Familie | D13: monatlich | E13: Beide | F13: nein | G13: 30 | H13: =ROUND(VLOOKUP(Tabelle1[[#This Row],[Frequenz]],K:L,2,0)*Tabelle1[[#This Row],[Dauer (in Minuten)]]/60,1) -> 6 | I13: =ROUND(Tabelle1[[#This Row],[Dauer pro Jahr (in Stunden)]]/$L$2,1) -> 0.8 | K13: akut | L13: 1
A14: Familien-Organisation | B14: Finanzen | C14: Kontenpflege: Finanzen checken, Altersvorsorge, Betriebsrente | D14: vierteljährlich | E14: Laura | F14: nein | G14: 15 | H14: =ROUND(VLOOKUP(Tabelle1[[#This Row],[Frequenz]],K:L,2,0)*Tabelle1[[#This Row],[Dauer (in Minuten)]]/60,1) -> 1 | I14: =ROUND(Tabelle1[[#This Row],[Dauer pro Jahr (in Stunden)]]/$L$2,1) -> 0.1
A15: Familien-Organisation | B15: Finanzen | C15: Kontoauszüge besorgen oder organisieren | D15: vierteljährlich | E15: Anton | F15: nein | G15: 15 | H15: =ROUND(VLOOKUP(Tabelle1[[#This Row],[Frequenz]],K:L,2,0)*Tabelle1[[#This Row],[Dauer (in Minuten)]]/60,1) -> 1 | I15: =ROUND(Tabelle1[[#This Row],[Dauer pro Jahr (in Stunden)]]/$L$2,1) -> 0.1
A16: Familien-Organisation | B16: Finanzen | C16: Miete | D16: jährlich | E16: Anton | F16: nein | G16: 30 | H16: =ROUND(VLOOKUP(Tabelle1[[#This Row],[Frequenz]],K:L,2,0)*Tabelle1[[#This Row],[Dauer (in Minuten)]]/60,1) -> 0.5 | I16: =ROUND(Tabelle1[[#This Row],[Dauer pro Jahr (in Stunden)]]/$L$2,1) -> 0.1
A17: Familien-Organisation | B17: Finanzen | C17: Rechnungen begleichen | D17: monatlich | E17: Anton | F17: nein | G17: 15 | H17: =ROUND(VLOOKUP(Tabelle1[[#This Row],[Frequenz]],K:L,2,0)*Tabelle1[[#This Row],[Dauer (in Minuten)]]/60,1) -> 3 | I17: =ROUND(Tabelle1[[#This Row],[Dauer pro Jahr (in Stunden)]]/$L$2,1) -> 0.4
A18: Familien-Organisation | B18: Finanzen | C18: Steuererklärung machen | D18: jährlich | E18: Anton | F18: nein | G18: 240 | H18: =ROUND(VLOOKUP(Tabelle1[[#This Row],[Frequenz]],K:L,2,0)*Tabelle1[[#This Row],[Dauer (in Minuten)]]/60,1) -> 4 | I18: =ROUND(Tabelle1[[#This Row],[Dauer pro Jahr (in Stunden)]]/$L$2,1) -> 0.5
A19: Familien-Organisation | B19: Finanzen | C19: Wohnkredit | D19: jährlich | E19: Anton | F19: nein | G19: 30 | H19: =ROUND(VLOOKUP(Tabelle1[[#This Row],[Frequenz]],K:L,2,0)*Tabelle1[[#This Row],[Dauer (in Minuten)]]/60,1) -> 0.5 | I19: =ROUND(Tabelle1[[#This Row],[Dauer pro Jahr (in Stunden)]]/$L$2,1) -> 0.1
A20: Familien-Organisation | B20: Hobby / Freizeit | C20: altersgerechte Bücher, Cds, Hörspiele kaufen / leihen | D20: monatlich | E20: Laura | F20: ja | G20: 30 | H20: =ROUND(VLOOKUP(Tabelle1[[#This Row],[Frequenz]],K:L,2,0)*Tabelle1[[#This Row],[Dauer (in Minuten)]]/60,1) -> 6 | I20: =ROUND(Tabelle1[[#This Row],[Dauer pro Jahr (in Stunden)]]/$L$2,1) -> 0.8
A21: Familien-Organisation | B21: Hobby / Freizeit | C21: Basteln: für Schule, Kindergarten, als Freizeitbeschäftigung | D21: monatlich | E21: Laura | F21: ja | G21: 20 | H21: =ROUND(VLOOKUP(Tabelle1[[#This Row],[Frequenz]],K:L,2,0)*Tabelle1[[#This Row],[Dauer (in Minuten)]]/60,1) -> 4 | I21: =ROUND(Tabelle1[[#This Row],[Dauer pro Jahr (in Stunden)]]/$L$2,1) -> 0.5
A22: Familien-Organisation | B22: Hobby / Freizeit | C22: Für Bewegung und frische Luft bei den Kindern sorgen | D22: täglich | E22: Anton | F22: ja | G22: 45 | H22: =ROUND(VLOOKUP(Tabelle1[[#This Row],[Frequenz]],K:L,2,0)*Tabelle1[[#This Row],[Dauer (in Minuten)]]/60,1) -> 273.8 | I22: =ROUND(Tabelle1[[#This Row],[Dauer pro Jahr (in Stunden)]]/$L$2,1) -> 34.2
A23: Familien-Organisation | B23: Hobby / Freizeit | C23: Hobbys Kinder organisieren (Vereine, Unterricht) | D23: vierteljährlich | E23: Laura | F23: nein | G23: 15 | H23: =ROUND(VLOOKUP(Tabelle1[[#This Row],[Frequenz]],K:L,2,0)*Tabelle1[[#This Row],[Dauer (in Minuten)]]/60,1) -> 1 | I23: =ROUND(Tabelle1[[#This Row],[Dauer pro Jahr (in Stunden)]]/$L$2,1) -> 0.1
A24: Familien-Organisation | B24: Hobby / Freizeit | C24: Kinderbetreuung organisieren (Babysitter, kranke Kinder) | D24: wöchentlich | E24: Anton | F24: nein | G24: 5 | H24: =ROUND(VLOOKUP(Tabelle1[[#This Row],[Frequenz]],K:L,2,0)*Tabelle1[[#This Row],[Dauer (in Minuten)]]/60,1) -> 4.3 | I24: =ROUND(Tabelle1[[#This Row],[Dauer pro Jahr (in Stunden)]]/$L$2,1) -> 0.5
A25: Familien-Organisation | B25: Hobby / Freizeit | C25: Playdates organisieren (und begleiten) | D25: wöchentlich | E25: Laura | F25: ja | G25: 20 | H25: =ROUND(VLOOKUP(Tabelle1[[#This Row],[Frequenz]],K:L,2,0)*Tabelle1[[#This Row],[Dauer (in Minuten)]]/60,1) -> 17.3 | I25: =ROUND(Tabelle1[[#This Row],[Dauer pro Jahr (in Stunden)]]/$L$2,1) -> 2.2
A26: Familien-Organisation | B26: Hobby / Freizeit | C26: Rucksack für Familienausflüge packen / auspacken | D26: wöchentlich | E26: Laura | F26: ja | G26: 15 | H26: =ROUND(VLOOKUP(Tabelle1[[#This Row],[Frequenz]],K:L,2,0)*Tabelle1[[#This Row],[Dauer (in Minuten)]]/60,1) -> 13 | I26: =ROUND(Tabelle1[[#This Row],[Dauer pro Jahr (in Stunden)]]/$L$2,1) -> 1.6
A27: Familien-Organisation | B27: Hobby / Freizeit | C27: Rucksack packen / auspacken für Kinderhobbys | D27: wöchentlich | E27: Laura | F27: ja | G27: 5 | H27: =ROUND(VLOOKUP(Tabelle1[[#This Row],[Frequenz]],K:L,2,0)*Tabelle1[[#This Row],[Dauer (in Minuten)]]/60,1) -> 4.3 | I27: =ROUND(Tabelle1[[#This Row],[Dauer pro Jahr (in Stunden)]]/$L$2,1) -> 0.5
A28: Familien-Organisation | B28: Hobby / Freizeit | C28: tägliche Fahrdienste für Kinder | D28: täglich | E28: Beide | F28: ja | G28: 4 | H28: =ROUND(VLOOKUP(Tabelle1[[#This Row],[Frequenz]],K:L,2,0)*Tabelle1[[#This Row],[Dauer (in Minuten)]]/60,1) -> 24.3 | I28: =ROUND(Tabelle1[[#This Row],[Dauer pro Jahr (in Stunden)]]/$L$2,1) -> 3
A29: Familien-Organisation | B29: Hobby / Freizeit | C29: Wochenende: Ausflüge planen | D29: wöchentlich | E29: Laura | F29: nein | G29: 20 | H29: =ROUND(VLOOKUP(Tabelle1[[#This Row],[Frequenz]],K:L,2,0)*Tabelle1[[#This Row],[Dauer (in Minuten)]]/60,1) -> 17.3 | I29: =ROUND(Tabelle1[[#This Row],[Dauer pro Jahr (in Stunden)]]/$L$2,1) -> 2.2
A30: Familien-Organisation | B30: Kinderkleidung | C30: Kinderkleider für den nächsten Tag rauslegen | D30: täglich | E30: Laura | F30: ja | G30: 5 | H30: =ROUND(VLOOKUP(Tabelle1[[#This Row],[Frequenz]],K:L,2,0)*Tabelle1[[#This Row],[Dauer (in Minuten)]]/60,1) -> 30.4 | I30: =ROUND(Tabelle1[[#This Row],[Dauer pro Jahr (in Stunden)]]/$L$2,1) -> 3.8
A31: Familien-Organisation | B31: Kinderkleidung | C31: Kinderkleidung nach Jahreszeiten sortieren, waschen, aufräumen | D31: vierteljährlich | E31: Laura | F31: ja | G31: 20 | H31: =ROUND(VLOOKUP(Tabelle1[[#This Row],[Frequenz]],K:L,2,0)*Tabelle1[[#This Row],[Dauer (in Minuten)]]/60,1) -> 1.3 | I31: =ROUND(Tabelle1[[#This Row],[Dauer pro Jahr (in Stunden)]]/$L$2,1) -> 0.2
A32: Familien-Organisation | B32: Kinderkleidung | C32: Kleidung an andere Kinder weitergeben / verkaufen / verschenken | D32: vierteljährlich | E32: Laura | F32: ja | G32: 45 | H32: =ROUND(VLOOKUP(Tabelle1[[#This Row],[Frequenz]],K:L,2,0)*Tabelle1[[#This Row],[Dauer (in Minuten)]]/60,1) -> 3 | I32: =ROUND(Tabelle1[[#This Row],[Dauer pro Jahr (in Stunden)]]/$L$2,1) -> 0.4
A33: Familien-Organisation | B33: Kinderkleidung | C33: neue Kleider kaufen (Kinder) | D33: vierteljährlich | E33: Laura | F33: ja | G33: 120 | H33: =ROUND(VLOOKUP(Tabelle1[[#This Row],[Frequenz]],K:L,2,0)*Tabelle1[[#This Row],[Dauer (in Minuten)]]/60,1) -> 8 | I33: =ROUND(Tabelle1[[#This Row],[Dauer pro Jahr (in Stunden)]]/$L$2,1) -> 1
A34: Familien-Organisation | B34: Kinderkleidung | C34: Schuhgröße messen, Kinderschuhe kaufen oder der Jahreszeit anpassen | D34: vierteljährlich | E34: Anton | F34: ja | G34: 45 | H34: =ROUND(VLOOKUP(Tabelle1[[#This Row],[Frequenz]],K:L,2,0)*Tabelle1[[#This Row],[Dauer (in Minuten)]]/60,1) -> 3 | I34: =ROUND(Tabelle1[[#This Row],[Dauer pro Jahr (in Stunden)]]/$L$2,1) -> 0.4
A35: Familien-Organisation | B35: Ordnung | C35: alte Zeitungen aussortieren | D35: monatlich | E35: Laura | F35: ja | G35: 10 | H35: =ROUND(VLOOKUP(Tabelle1[[#This Row],[Frequenz]],K:L,2,0)*Tabelle1[[#This Row],[Dauer (in Minuten)]]/60,1) -> 2 | I35: =ROUND(Tabelle1[[#This Row],[Dauer pro Jahr (in Stunden)]]/$L$2,1) -> 0.3
A36: Familien-Organisation | B36: Ordnung | C36: Handy, Schlüssel, Geldbeutel deponieren | D36: täglich | E36: Beide | F36: ja | G36: 5 | H36: =ROUND(VLOOKUP(Tabelle1[[#This Row],[Frequenz]],K:L,2,0)*Tabelle1[[#This Row],[Dauer (in Minuten)]]/60,1) -> 30.4 | I36: =ROUND(Tabelle1[[#This Row],[Dauer pro Jahr (in Stunden)]]/$L$2,1) -> 3.8
A37: Familien-Organisation | B37: Ordnung | C37: Ordner erstellen und pflegen | D37: vierteljährlich | E37: Laura | F37: ja | G37: 20 | H37: =ROUND(VLOOKUP(Tabelle1[[#This Row],[Frequenz]],K:L,2,0)*Tabelle1[[#This Row],[Dauer (in Minuten)]]/60,1) -> 1.3 | I37: =ROUND(Tabelle1[[#This Row],[Dauer pro Jahr (in Stunden)]]/$L$2,1) -> 0.2
A38: Familien-Organisation | B38: Papierkram | C38: Ablage machen | D38: monatlich | E38: Beide | F38: ja | G38: 20 | H38: =ROUND(VLOOKUP(Tabelle1[[#This Row],[Frequenz]],K:L,2,0)*Tabelle1[[#This Row],[Dauer (in Minuten)]]/60,1) -> 4 | I38: =ROUND(Tabelle1[[#This Row],[Dauer pro Jahr (in Stunden)]]/$L$2,1) -> 0.5
A39: Familien-Organisation | B39: Papierkram | C39: Post sortieren und ablegen, sichten, bewerten, bezahlen, abheften | D39: wöchentlich | E39: Beide | F39: ja | G39: 15 | H39: =ROUND(VLOOKUP(Tabelle1[[#This Row],[Frequenz]],K:L,2,0)*Tabelle1[[#This Row],[Dauer (in Minuten)]]/60,1) -> 13 | I39: =ROUND(Tabelle1[[#This Row],[Dauer pro Jahr (in Stunden)]]/$L$2,1) -> 1.6
A40: Familien-Organisation | B40: Papierkram | C40: Versicherungen checken, kündigen, abschließen | D40: jährlich | E40: Anton | F40: nein | G40: 15 | H40: =ROUND(VLOOKUP(Tabelle1[[#This Row],[Frequenz]],K:L,2,0)*Tabelle1[[#This Row],[Dauer (in Minuten)]]/60,1) -> 0.3 | I40: =ROUND(Tabelle1[[#This Row],[Dauer pro Jahr (in Stunden)]]/$L$2,1) -> 0
A41: Familien-Organisation | B41: Papierkram | C41: Zeitungsabo bezahlen / kündigen | D41: jährlich | E41: Laura | F41: nein | G41: 10 | H41: =ROUND(VLOOKUP(Tabelle1[[#This Row],[Frequenz]],K:L,2,0)*Tabelle1[[#This Row],[Dauer (in Minuten)]]/60,1) -> 0.2 | I41: =ROUND(Tabelle1[[#This Row],[Dauer pro Jahr (in Stunden)]]/$L$2,1) -> 0
A42: Familien-Organisation | B42: Termine | C42: Familienfeier planen | D42: jährlich | E42: Beide | F42: nein | G42: 180 | H42: =ROUND(VLOOKUP(Tabelle1[[#This Row],[Frequenz]],K:L,2,0)*Tabelle1[[#This Row],[Dauer (in Minuten)]]/60,1) -> 3 | I42: =ROUND(Tabelle1[[#This Row],[Dauer pro Jahr (in Stunden)]]/$L$2,1) -> 0.4
A43: Familien-Organisation | B43: Termine | C43: Friseurtermine Kinder: ausmachen und wahrnehmen | D43: vierteljährlich | E43: Anton | F43: nein | G43: 60 | H43: =ROUND(VLOOKUP(Tabelle1[[#This Row],[Frequenz]],K:L,2,0)*Tabelle1[[#This Row],[Dauer (in Minuten)]]/60,1) -> 4 | I43: =ROUND(Tabelle1[[#This Row],[Dauer pro Jahr (in Stunden)]]/$L$2,1) -> 0.5
A44: Familien-Organisation | B44: Termine | C44: Kalender führen | D44: täglich | E44: Beide | F44: nein | G44: 5 | H44: =ROUND(VLOOKUP(Tabelle1[[#This Row],[Frequenz]],K:L,2,0)*Tabelle1[[#This Row],[Dauer (in Minuten)]]/60,1) -> 30.4 | I44: =ROUND(Tabelle1[[#This Row],[Dauer pro Jahr (in Stunden)]]/$L$2,1) -> 3.8
A45: Familien-Organisation | B45: Termine | C45: Woche planen | D45: wöchentlich | E45: Beide | F45: nein | G45: 20 | H45: =ROUND(VLOOKUP(Tabelle1[[#This Row],[Frequenz]],K:L,2,0)*Tabelle1[[#This Row],[Dauer (in Minuten)]]/60,1) -> 17.3 | I45: =ROUND(Tabelle1[[#This Row],[Dauer pro Jahr (in Stunden)]]/$L$2,1) -> 2.2
A46: Familien-Organisation | B46: Urlaub | C46: Packen | D46: halbjährlich | E46: Beide | F46: ja | G46: 120 | H46: =ROUND(VLOOKUP(Tabelle1[[#This Row],[Frequenz]],K:L,2,0)*Tabelle1[[#This Row],[Dauer (in Minuten)]]/60,1) -> 4 | I46: =ROUND(Tabelle1[[#This Row],[Dauer pro Jahr (in Stunden)]]/$L$2,1) -> 0.5
A47: Familien-Organisation | B47: Urlaub | C47: Packliste machen | D47: jährlich | E47: Beide | F47: nein | G47: 45 | H47: =ROUND(VLOOKUP(Tabelle1[[#This Row],[Frequenz]],K:L,2,0)*Tabelle1[[#This Row],[Dauer (in Minuten)]]/60,1) -> 0.8 | I47: =ROUND(Tabelle1[[#This Row],[Dauer pro Jahr (in Stunden)]]/$L$2,1) -> 0.1
A48: Familien-Organisation | B48: Urlaub | C48: Proviant für die Fahrt machen | D48: halbjährlich | E48: Laura | F48: nein | G48: 15 | H48: =ROUND(VLOOKUP(Tabelle1[[#This Row],[Frequenz]],K:L,2,0)*Tabelle1[[#This Row],[Dauer (in Minuten)]]/60,1) -> 0.5 | I48: =ROUND(Tabelle1[[#This Row],[Dauer pro Jahr (in Stunden)]]/$L$2,1) -> 0.1
A49: Familien-Organisation | B49: Urlaub | C49: Reiseapotheke auf Vollständigkeit kontrollieren, Ersatz kaufen | D49: halbjährlich | E49: Laura | F49: ja | G49: 15 | H49: =ROUND(VLOOKUP(Tabelle1[[#This Row],[Frequenz]],K:L,2,0)*Tabelle1[[#This Row],[Dauer (in Minuten)]]/60,1) -> 0.5 | I49: =ROUND(Tabelle1[[#This Row],[Dauer pro Jahr (in Stunden)]]/$L$2,1) -> 0.1
A50: Familien-Organisation | B50: Urlaub | C50: Urlaub buchen und planen | D50: jährlich | E50: Anton | F50: nein | G50: 30 | H50: =ROUND(VLOOKUP(Tabelle1[[#This Row],[Frequenz]],K:L,2,0)*Tabelle1[[#This Row],[Dauer (in Minuten)]]/60,1) -> 0.5 | I50: =ROUND(Tabelle1[[#This Row],[Dauer pro Jahr (in Stunden)]]/$L$2,1) -> 0.1
A51: Fürsorge | B51: Atmosphäre schaffen | C51: Blumen aufstellen, Blumen pflanzen | D51: monatlich | E51: Laura | F51: ja | G51: 10 | H51: =ROUND(VLOOKUP(Tabelle1[[#This Row],[Frequenz]],K:L,2,0)*Tabelle1[[#This Row],[Dauer (in Minuten)]]/60,1) -> 2 | I51: =ROUND(Tabelle1[[#This Row],[Dauer pro Jahr (in Stunden)]]/$L$2,1) -> 0.3
A52: Fürsorge | B52: Atmosphäre schaffen | C52: Jahreszeitlich dekorieren | D52: vierteljährlich | E52: Laura | F52: ja | G52: 30 | H52: =ROUND(VLOOKUP(Tabelle1[[#This Row],[Frequenz]],K:L,2,0)*Tabelle1[[#This Row],[Dauer (in Minuten)]]/60,1) -> 2 | I52: =ROUND(Tabelle1[[#This Row],[Dauer pro Jahr (in Stunden)]]/$L$2,1) -> 0.3
A53: Fürsorge | B53: Baby | C53: Babybrei kochen / kaufen | D53: täglich | E53: Beide | F53: ja | G53: 15 | H53: =ROUND(VLOOKUP(Tabelle1[[#This Row],[Frequenz]],K:L,2,0)*Tabelle1[[#This Row],[Dauer (in Minuten)]]/60,1) -> 91.3 | I53: =ROUND(Tabelle1[[#This Row],[Dauer pro Jahr (in Stunden)]]/$L$2,1) -> 11.4
A54: Fürsorge | B54: Baby | C54: Babykurse organisieren, anmelden, besuchen | D54: wöchentlich | E54: Beide | F54: ja | G54: 30 | H54: =ROUND(VLOOKUP(Tabelle1[[#This Row],[Frequenz]],K:L,2,0)*Tabelle1[[#This Row],[Dauer (in Minuten)]]/60,1) -> 26 | I54: =ROUND(Tabelle1[[#This Row],[Dauer pro Jahr (in Stunden)]]/$L$2,1) -> 3.3
A55: Fürsorge | B55: Baby | C55: Füttern | D55: täglich | E55: Beide | F55: ja | G55: 80 | H55: =ROUND(VLOOKUP(Tabelle1[[#This Row],[Frequenz]],K:L,2,0)*Tabelle1[[#This Row],[Dauer (in Minuten)]]/60,1) -> 486.7 | I55: =ROUND(Tabelle1[[#This Row],[Dauer pro Jahr (in Stunden)]]/$L$2,1) -> 60.8
A56: Fürsorge | B56: Baby | C56: Vitamin D geben | D56: täglich | E56: Beide | F56: ja | G56: 5 | H56: =ROUND(VLOOKUP(Tabelle1[[#This Row],[Frequenz]],K:L,2,0)*Tabelle1[[#This Row],[Dauer (in Minuten)]]/60,1) -> 30.4 | I56: =ROUND(Tabelle1[[#This Row],[Dauer pro Jahr (in Stunden)]]/$L$2,1) -> 3.8
A57: Fürsorge | B57: Baby | C57: Wickeln | D57: täglich | E57: Beide | F57: ja | G57: 40 | H57: =ROUND(VLOOKUP(Tabelle1[[#This Row],[Frequenz]],K:L,2,0)*Tabelle1[[#This Row],[Dauer (in Minuten)]]/60,1) -> 243.3 | I57: =ROUND(Tabelle1[[#This Row],[Dauer pro Jahr (in Stunden)]]/$L$2,1) -> 30.4
A58: Fürsorge | B58: Baby | C58: Wickeltasche packen / auspacken | D58: täglich | E58: Beide | F58: ja | G58: 5 | H58: =ROUND(VLOOKUP(Tabelle1[[#This Row],[Frequenz]],K:L,2,0)*Tabelle1[[#This Row],[Dauer (in Minuten)]]/60,1) -> 30.4 | I58: =ROUND(Tabelle1[[#This Row],[Dauer pro Jahr (in Stunden)]]/$L$2,1) -> 3.8
A59: Fürsorge | B59: Elfenarbeit | C59: Faschingskostüme kaufen / nähen | D59: jährlich | E59: Laura | F59: nein | G59: 60 | H59: =ROUND(VLOOKUP(Tabelle1[[#This Row],[Frequenz]],K:L,2,0)*Tabelle1[[#This Row],[Dauer (in Minuten)]]/60,1) -> 1 | I59: =ROUND(Tabelle1[[#This Row],[Dauer pro Jahr (in Stunden)]]/$L$2,1) -> 0.1
A60: Fürsorge | B60: Elfenarbeit | C60: Geschenke für ErzieherIn / Tagesmutter / FußballtrainerIn besorgen | D60: jährlich | E60: Laura | F60: nein | G60: 30 | H60: =ROUND(VLOOKUP(Tabelle1[[#This Row],[Frequenz]],K:L,2,0)*Tabelle1[[#This Row],[Dauer (in Minuten)]]/60,1) -> 0.5 | I60: =ROUND(Tabelle1[[#This Row],[Dauer pro Jahr (in Stunden)]]/$L$2,1) -> 0.1
A61: Fürsorge | B61: Elfenarbeit | C61: Zahnfee spielen | D61: vierteljährlich | E61: Laura | F61: ja | G61: 10 | H61: =ROUND(VLOOKUP(Tabelle1[[#This Row],[Frequenz]],K:L,2,0)*Tabelle1[[#This Row],[Dauer (in Minuten)]]/60,1) -> 0.7 | I61: =ROUND(Tabelle1[[#This Row],[Dauer pro Jahr (in Stunden)]]/$L$2,1) -> 0.1
A62: Fürsorge | B62: Elfenarbeit Geburtstag | C62: Gabentisch schmücken | D62: halbjährlich | E62: Laura | F62: ja | G62: 10 | H62: =ROUND(VLOOKUP(Tabelle1[[#This Row],[Frequenz]],K:L,2,0)*Tabelle1[[#This Row],[Dauer (in Minuten)]]/60,1) -> 0.3 | I62: =ROUND(Tabelle1[[#This Row],[Dauer pro Jahr (in Stunden)]]/$L$2,1) -> 0
A63: Fürsorge | B63: Elfenarbeit Geburtstag | C63: Geburtstagskuchen backen | D63: vierteljährlich | E63: Laura | F63: ja | G63: 40 | H63: =ROUND(VLOOKUP(Tabelle1[[#This Row],[Frequenz]],K:L,2,0)*Tabelle1[[#This Row],[Dauer (in Minuten)]]/60,1) -> 2.7 | I63: =ROUND(Tabelle1[[#This Row],[Dauer pro Jahr (in Stunden)]]/$L$2,1) -> 0.3
A64: Fürsorge | B64: Elfenarbeit Geburtstag | C64: Geschenke für Geburtstage überlegen, abstimmen, kaufen | D64: vierteljährlich | E64: Laura | F64: nein | G64: 60 | H64: =ROUND(VLOOKUP(Tabelle1[[#This Row],[Frequenz]],K:L,2,0)*Tabelle1[[#This Row],[Dauer (in Minuten)]]/60,1) -> 4 | I64: =ROUND(Tabelle1[[#This Row],[Dauer pro Jahr (in Stunden)]]/$L$2,1) -> 0.5
A65: Fürsorge | B65: Elfenarbeit Geburtstag | C65: Kindergeburtstag organisieren | D65: halbjährlich | E65: Beide | F65: nein | G65: 120 | H65: =ROUND(VLOOKUP(Tabelle1[[#This Row],[Frequenz]],K:L,2,0)*Tabelle1[[#This Row],[Dauer (in Minuten)]]/60,1) -> 4 | I65: =ROUND(Tabelle1[[#This Row],[Dauer pro Jahr (in Stunden)]]/$L$2,1) -> 0.5
A66: Fürsorge | B66: Elfenarbeit Geburtstag | C66: Verwandten/ Freunden zum Geburtstag gratulieren | D66: wöchentlich | E66: Laura | F66: nein | G66: 10 | H66: =ROUND(VLOOKUP(Tabelle1[[#This Row],[Frequenz]],K:L,2,0)*Tabelle1[[#This Row],[Dauer (in Minuten)]]/60,1) -> 8.7 | I66: =ROUND(Tabelle1[[#This Row],[Dauer pro Jahr (in Stunden)]]/$L$2,1) -> 1.1
A67: Fürsorge | B67: Elfenarbeit Geburtstag | C67: Wünsche der Kinder merken und aufschreiben (für Geburtstage und Weihnachten) | D67: monatlich | E67: Laura | F67: nein | G67: 30 | H67: =ROUND(VLOOKUP(Tabelle1[[#This Row],[Frequenz]],K:L,2,0)*Tabelle1[[#This Row],[Dauer (in Minuten)]]/60,1) -> 6 | I67: =ROUND(Tabelle1[[#This Row],[Dauer pro Jahr (in Stunden)]]/$L$2,1) -> 0.8
A68: Fürsorge | B68: Elfenarbeit Ostern | C68: Kleine Ostergeschenke und Süßes besorgen | D68: jährlich | E68: Laura | F68: ja | G68: 60 | H68: =ROUND(VLOOKUP(Tabelle1[[#This Row],[Frequenz]],K:L,2,0)*Tabelle1[[#This Row],[Dauer (in Minuten)]]/60,1) -> 1 | I68: =ROUND(Tabelle1[[#This Row],[Dauer pro Jahr (in Stunden)]]/$L$2,1) -> 0.1
A69: Fürsorge | B69: Elfenarbeit Ostern | C69: Ostereier bemalen | D69: jährlich | E69: Laura | F69: ja | G69: 120 | H69: =ROUND(VLOOKUP(Tabelle1[[#This Row],[Frequenz]],K:L,2,0)*Tabelle1[[#This Row],[Dauer (in Minuten)]]/60,1) -> 2 | I69: =ROUND(Tabelle1[[#This Row],[Dauer pro Jahr (in Stunden)]]/$L$2,1) -> 0.3
A70: Fürsorge | B70: Elfenarbeit Ostern | C70: Osterkörbchen füllen | D70: jährlich | E70: Laura | F70: ja | G70: 30 | H70: =ROUND(VLOOKUP(Tabelle1[[#This Row],[Frequenz]],K:L,2,0)*Tabelle1[[#This Row],[Dauer (in Minuten)]]/60,1) -> 0.5 | I70: =ROUND(Tabelle1[[#This Row],[Dauer pro Jahr (in Stunden)]]/$L$2,1) -> 0.1
A71: Fürsorge | B71: Elfenarbeit Weihnachten | C71: Adventskalendergeschenke kaufen, Beutel befüllen | D71: jährlich | E71: Laura | F71: ja | G71: 240 | H71: =ROUND(VLOOKUP(Tabelle1[[#This Row],[Frequenz]],K:L,2,0)*Tabelle1[[#This Row],[Dauer (in Minuten)]]/60,1) -> 4 | I71: =ROUND(Tabelle1[[#This Row],[Dauer pro Jahr (in Stunden)]]/$L$2,1) -> 0.5
A72: Fürsorge | B72: Elfenarbeit Weihnachten | C72: Adventskranz besorgen | D72: jährlich | E72: Laura | F72: nein | G72: 20 | H72: =ROUND(VLOOKUP(Tabelle1[[#This Row],[Frequenz]],K:L,2,0)*Tabelle1[[#This Row],[Dauer (in Minuten)]]/60,1) -> 0.3 | I72: =ROUND(Tabelle1[[#This Row],[Dauer pro Jahr (in Stunden)]]/$L$2,1) -> 0
A73: Fürsorge | B73: Elfenarbeit Weihnachten | C73: Heilig Abend vorbereiten / organisieren | D73: jährlich | E73: Anton | F73: ja | G73: 60 | H73: =ROUND(VLOOKUP(Tabelle1[[#This Row],[Frequenz]],K:L,2,0)*Tabelle1[[#This Row],[Dauer (in Minuten)]]/60,1) -> 1 | I73: =ROUND(Tabelle1[[#This Row],[Dauer pro Jahr (in Stunden)]]/$L$2,1) -> 0.1
A74: Fürsorge | B74: Elfenarbeit Weihnachten | C74: mit Kindern Wunschzettel schreiben | D74: jährlich | E74: Laura | F74: nein | G74: 20 | H74: =ROUND(VLOOKUP(Tabelle1[[#This Row],[Frequenz]],K:L,2,0)*Tabelle1[[#This Row],[Dauer (in Minuten)]]/60,1) -> 0.3 | I74: =ROUND(Tabelle1[[#This Row],[Dauer pro Jahr (in Stunden)]]/$L$2,1) -> 0
A75: Fürsorge | B75: Elfenarbeit Weihnachten | C75: Plätzchen backen | D75: jährlich | E75: Laura | F75: ja | G75: 120 | H75: =ROUND(VLOOKUP(Tabelle1[[#This Row],[Frequenz]],K:L,2,0)*Tabelle1[[#This Row],[Dauer (in Minuten)]]/60,1) -> 2 | I75: =ROUND(Tabelle1[[#This Row],[Dauer pro Jahr (in Stunden)]]/$L$2,1) -> 0.3
A76: Fürsorge | B76: Elfenarbeit Weihnachten | C76: Weihnachtsbaum kaufen und schmücken | D76: jährlich | E76: Anton | F76: ja | G76: 120 | H76: =ROUND(VLOOKUP(Tabelle1[[#This Row],[Frequenz]],K:L,2,0)*Tabelle1[[#This Row],[Dauer (in Minuten)]]/60,1) -> 2 | I76: =ROUND(Tabelle1[[#This Row],[Dauer pro Jahr (in Stunden)]]/$L$2,1) -> 0.3
A77: Fürsorge | B77: Elfenarbeit Weihnachten | C77: Weihnachtspost schreiben | D77: jährlich | E77: Laura | F77: nein | G77: 60 | H77: =ROUND(VLOOKUP(Tabelle1[[#This Row],[Frequenz]],K:L,2,0)*Tabelle1[[#This Row],[Dauer (in Minuten)]]/60,1) -> 1 | I77: =ROUND(Tabelle1[[#This Row],[Dauer pro Jahr (in Stunden)]]/$L$2,1) -> 0.1
A78: Fürsorge | B78: Erinnerungen | C78: Erinnerungsalben Kinder pflegen / gestalten | D78: vierteljährlich | E78: Laura | F78: ja | G78: 30 | H78: =ROUND(VLOOKUP(Tabelle1[[#This Row],[Frequenz]],K:L,2,0)*Tabelle1[[#This Row],[Dauer (in Minuten)]]/60,1) -> 2 | I78: =ROUND(Tabelle1[[#This Row],[Dauer pro Jahr (in Stunden)]]/$L$2,1) -> 0.3
A79: Fürsorge | B79: Erinnerungen | C79: Fotoalben gestalten | D79: vierteljährlich | E79: Laura | F79: nein | G79: 180 | H79: =ROUND(VLOOKUP(Tabelle1[[#This Row],[Frequenz]],K:L,2,0)*Tabelle1[[#This Row],[Dauer (in Minuten)]]/60,1) -> 12 | I79: =ROUND(Tabelle1[[#This Row],[Dauer pro Jahr (in Stunden)]]/$L$2,1) -> 1.5
A80: Fürsorge | B80: Erinnerungen | C80: Fotos aufhängen | D80: jährlich | E80: Anton | F80: ja | G80: 20 | H80: =ROUND(VLOOKUP(Tabelle1[[#This Row],[Frequenz]],K:L,2,0)*Tabelle1[[#This Row],[Dauer (in Minuten)]]/60,1) -> 0.3 | I80: =ROUND(Tabelle1[[#This Row],[Dauer pro Jahr (in Stunden)]]/$L$2,1) -> 0
A81: Fürsorge | B81: Erinnerungen | C81: Fotos machen | D81: wöchentlich | E81: Laura | F81: ja | G81: 15 | H81: =ROUND(VLOOKUP(Tabelle1[[#This Row],[Frequenz]],K:L,2,0)*Tabelle1[[#This Row],[Dauer (in Minuten)]]/60,1) -> 13 | I81: =ROUND(Tabelle1[[#This Row],[Dauer pro Jahr (in Stunden)]]/$L$2,1) -> 1.6
A82: Fürsorge | B82: Erinnerungen | C82: Kinderkunstwerke sammeln, archivieren, aufhängen | D82: wöchentlich | E82: Laura | F82: ja | G82: 5 | H82: =ROUND(VLOOKUP(Tabelle1[[#This Row],[Frequenz]],K:L,2,0)*Tabelle1[[#This Row],[Dauer (in Minuten)]]/60,1) -> 4.3 | I82: =ROUND(Tabelle1[[#This Row],[Dauer pro Jahr (in Stunden)]]/$L$2,1) -> 0.5
A83: Fürsorge | B83: Ernährung | C83: Abendessen machen | D83: täglich | E83: Anton | F83: ja | G83: 20 | H83: =ROUND(VLOOKUP(Tabelle1[[#This Row],[Frequenz]],K:L,2,0)*Tabelle1[[#This Row],[Dauer (in Minuten)]]/60,1) -> 121.7 | I83: =ROUND(Tabelle1[[#This Row],[Dauer pro Jahr (in Stunden)]]/$L$2,1) -> 15.2
A84: Fürsorge | B84: Ernährung | C84: Brot kaufen | D84: täglich | E84: Laura | F84: ja | G84: 10 | H84: =ROUND(VLOOKUP(Tabelle1[[#This Row],[Frequenz]],K:L,2,0)*Tabelle1[[#This Row],[Dauer (in Minuten)]]/60,1) -> 60.8 | I84: =ROUND(Tabelle1[[#This Row],[Dauer pro Jahr (in Stunden)]]/$L$2,1) -> 7.6
A85: Fürsorge | B85: Ernährung | C85: Einkaufsliste schreiben | D85: wöchentlich | E85: Laura | F85: nein | G85: 10 | H85: =ROUND(VLOOKUP(Tabelle1[[#This Row],[Frequenz]],K:L,2,0)*Tabelle1[[#This Row],[Dauer (in Minuten)]]/60,1) -> 8.7 | I85: =ROUND(Tabelle1[[#This Row],[Dauer pro Jahr (in Stunden)]]/$L$2,1) -> 1.1
A86: Fürsorge | B86: Ernährung | C86: Essensplanung machen | D86: wöchentlich | E86: Laura | F86: nein | G86: 15 | H86: =ROUND(VLOOKUP(Tabelle1[[#This Row],[Frequenz]],K:L,2,0)*Tabelle1[[#This Row],[Dauer (in Minuten)]]/60,1) -> 13 | I86: =ROUND(Tabelle1[[#This Row],[Dauer pro Jahr (in Stunden)]]/$L$2,1) -> 1.6
A87: Fürsorge | B87: Ernährung | C87: Essensvorräte, Getränke einkaufen | D87: wöchentlich | E87: Laura | F87: ja | G87: 120 | H87: =ROUND(VLOOKUP(Tabelle1[[#This Row],[Frequenz]],K:L,2,0)*Tabelle1[[#This Row],[Dauer (in Minuten)]]/60,1) -> 104 | I87: =ROUND(Tabelle1[[#This Row],[Dauer pro Jahr (in Stunden)]]/$L$2,1) -> 13
A88: Fürsorge | B88: Ernährung | C88: Frühstück machen | D88: täglich | E88: Laura | F88: ja | G88: 10 | H88: =ROUND(VLOOKUP(Tabelle1[[#This Row],[Frequenz]],K:L,2,0)*Tabelle1[[#This Row],[Dauer (in Minuten)]]/60,1) -> 60.8 | I88: =ROUND(Tabelle1[[#This Row],[Dauer pro Jahr (in Stunden)]]/$L$2,1) -> 7.6
A89: Fürsorge | B89: Ernährung | C89: Kochen (Wochenende) | D89: wöchentlich | E89: Anton | F89: ja | G89: 20 | H89: =ROUND(VLOOKUP(Tabelle1[[#This Row],[Frequenz]],K:L,2,0)*Tabelle1[[#This Row],[Dauer (in Minuten)]]/60,1) -> 17.3 | I89: =ROUND(Tabelle1[[#This Row],[Dauer pro Jahr (in Stunden)]]/$L$2,1) -> 2.2
A90: Fürsorge | B90: Ernährung | C90: Mittagessen kochen | D90: täglich | E90: Laura | F90: ja | G90: 30 | H90: =ROUND(VLOOKUP(Tabelle1[[#This Row],[Frequenz]],K:L,2,0)*Tabelle1[[#This Row],[Dauer (in Minuten)]]/60,1) -> 182.5 | I90: =ROUND(Tabelle1[[#This Row],[Dauer pro Jahr (in Stunden)]]/$L$2,1) -> 22.8
A91: Fürsorge | B91: Erziehung | C91: Medienregeln aufstellen und auf das Einhalten achten | D91: täglich | E91: Laura | F91: nein | G91: 5 | H91: =ROUND(VLOOKUP(Tabelle1[[#This Row],[Frequenz]],K:L,2,0)*Tabelle1[[#This Row],[Dauer (in Minuten)]]/60,1) -> 30.4 | I91: =ROUND(Tabelle1[[#This Row],[Dauer pro Jahr (in Stunden)]]/$L$2,1) -> 3.8
A92: Fürsorge | B92: Erziehung | C92: Taschengeld bestimmen und auszahlen | D92: wöchentlich | E92: Laura | F92: nein | G92: 3 | H92: =ROUND(VLOOKUP(Tabelle1[[#This Row],[Frequenz]],K:L,2,0)*Tabelle1[[#This Row],[Dauer (in Minuten)]]/60,1) -> 2.6 | I92: =ROUND(Tabelle1[[#This Row],[Dauer pro Jahr (in Stunden)]]/$L$2,1) -> 0.3
A93: Fürsorge | B93: Gefühlsarbeit | C93: Kinder ins Bett bringen | D93: täglich | E93: Anton | F93: ja | G93: 40 | H93: =ROUND(VLOOKUP(Tabelle1[[#This Row],[Frequenz]],K:L,2,0)*Tabelle1[[#This Row],[Dauer (in Minuten)]]/60,1) -> 243.3 | I93: =ROUND(Tabelle1[[#This Row],[Dauer pro Jahr (in Stunden)]]/$L$2,1) -> 30.4
A94: Fürsorge | B94: Gefühlsarbeit | C94: Konflikte klären (zwischen Geschwistern oder zwischen Kindern und Freunden) | D94: wöchentlich | E94: Anton | F94: nein | G94: 30 | H94: =ROUND(VLOOKUP(Tabelle1[[#This Row],[Frequenz]],K:L,2,0)*Tabelle1[[#This Row],[Dauer (in Minuten)]]/60,1) -> 26 | I94: =ROUND(Tabelle1[[#This Row],[Dauer pro Jahr (in Stunden)]]/$L$2,1) -> 3.3
A95: Fürsorge | B95: Gefühlsarbeit | C95: Konflikte: Aussprachen mit Kindern führen | D95: wöchentlich | E95: Anton | F95: nein | G95: 10 | H95: =ROUND(VLOOKUP(Tabelle1[[#This Row],[Frequenz]],K:L,2,0)*Tabelle1[[#This Row],[Dauer (in Minuten)]]/60,1) -> 8.7 | I95: =ROUND(Tabelle1[[#This Row],[Dauer pro Jahr (in Stunden)]]/$L$2,1) -> 1.1
A96: Fürsorge | B96: Gefühlsarbeit | C96: sich um die eigenen Eltern kümmern | D96: wöchentlich | E96: Laura | F96: nein | G96: 20 | H96: =ROUND(VLOOKUP(Tabelle1[[#This Row],[Frequenz]],K:L,2,0)*Tabelle1[[#This Row],[Dauer (in Minuten)]]/60,1) -> 17.3 | I96: =ROUND(Tabelle1[[#This Row],[Dauer pro Jahr (in Stunden)]]/$L$2,1) -> 2.2
A97: Fürsorge | B97: Gesundheit | C97: Augen Kinder: Sehtest, Augenarzttermin, neue Brille kaufen | D97: jährlich | E97: Laura | F97: ja | G97: 120 | H97: =ROUND(VLOOKUP(Tabelle1[[#This Row],[Frequenz]],K:L,2,0)*Tabelle1[[#This Row],[Dauer (in Minuten)]]/60,1) -> 2 | I97: =ROUND(Tabelle1[[#This Row],[Dauer pro Jahr (in Stunden)]]/$L$2,1) -> 0.3
A98: Fürsorge | B98: Gesundheit | C98: Eincremen | D98: wöchentlich | E98: Laura | F98: ja | G98: 20 | H98: =ROUND(VLOOKUP(Tabelle1[[#This Row],[Frequenz]],K:L,2,0)*Tabelle1[[#This Row],[Dauer (in Minuten)]]/60,1) -> 17.3 | I98: =ROUND(Tabelle1[[#This Row],[Dauer pro Jahr (in Stunden)]]/$L$2,1) -> 2.2
A99: Fürsorge | B99: Gesundheit | C99: Hausapotheke durchschauen, Ersatz kaufen, Haltbarkeit prüfen | D99: vierteljährlich | E99: Laura | F99: ja | G99: 20 | H99: =ROUND(VLOOKUP(Tabelle1[[#This Row],[Frequenz]],K:L,2,0)*Tabelle1[[#This Row],[Dauer (in Minuten)]]/60,1) -> 1.3 | I99: =ROUND(Tabelle1[[#This Row],[Dauer pro Jahr (in Stunden)]]/$L$2,1) -> 0.2
A100: Fürsorge | B100: Gesundheit | C100: Impfausweis kontrollieren | D100: jährlich | E100: Laura | F100: ja | G100: 5 | H100: =ROUND(VLOOKUP(Tabelle1[[#This Row],[Frequenz]],K:L,2,0)*Tabelle1[[#This Row],[Dauer (in Minuten)]]/60,1) -> 0.1 | I100: =ROUND(Tabelle1[[#This Row],[Dauer pro Jahr (in Stunden)]]/$L$2,1) -> 0
A101: Fürsorge | B101: Gesundheit | C101: Kinder baden | D101: wöchentlich | E101: Anton | F101: ja | G101: 40 | H101: =ROUND(VLOOKUP(Tabelle1[[#This Row],[Frequenz]],K:L,2,0)*Tabelle1[[#This Row],[Dauer (in Minuten)]]/60,1) -> 34.7 | I101: =ROUND(Tabelle1[[#This Row],[Dauer pro Jahr (in Stunden)]]/$L$2,1) -> 4.3
A102: Fürsorge | B102: Gesundheit | C102: Kindern Finger- und Fußägel schneiden | D102: wöchentlich | E102: Anton | F102: ja | G102: 10 | H102: =ROUND(VLOOKUP(Tabelle1[[#This Row],[Frequenz]],K:L,2,0)*Tabelle1[[#This Row],[Dauer (in Minuten)]]/60,1) -> 8.7 | I102: =ROUND(Tabelle1[[#This Row],[Dauer pro Jahr (in Stunden)]]/$L$2,1) -> 1.1
A103: Fürsorge | B103: Gesundheit | C103: regelmäßige Medikamente geben | D103: täglich | E103: Laura | F103: ja | G103: 5 | H103: =ROUND(VLOOKUP(Tabelle1[[#This Row],[Frequenz]],K:L,2,0)*Tabelle1[[#This Row],[Dauer (in Minuten)]]/60,1) -> 30.4 | I103: =ROUND(Tabelle1[[#This Row],[Dauer pro Jahr (in Stunden)]]/$L$2,1) -> 3.8
A104: Fürsorge | B104: Gesundheit | C104: Rezepte holen, Medikamente besorgen | D104: monatlich | E104: Laura | F104: ja | G104: 20 | H104: =ROUND(VLOOKUP(Tabelle1[[#This Row],[Frequenz]],K:L,2,0)*Tabelle1[[#This Row],[Dauer (in Minuten)]]/60,1) -> 4 | I104: =ROUND(Tabelle1[[#This Row],[Dauer pro Jahr (in Stunden)]]/$L$2,1) -> 0.5
A105: Fürsorge | B105: Gesundheit | C105: Therapie-Übungen machen (Logopädie, Ergotherapie) | D105: täglich | E105: Anton | F105: ja | G105: 20 | H105: =ROUND(VLOOKUP(Tabelle1[[#This Row],[Frequenz]],K:L,2,0)*Tabelle1[[#This Row],[Dauer (in Minuten)]]/60,1) -> 121.7 | I105: =ROUND(Tabelle1[[#This Row],[Dauer pro Jahr (in Stunden)]]/$L$2,1) -> 15.2
A106: Fürsorge | B106: Gesundheit | C106: Therapietermine ausmachen, planen | D106: vierteljährlich | E106: Beide | F106: nein | G106: 15 | H106: =ROUND(VLOOKUP(Tabelle1[[#This Row],[Frequenz]],K:L,2,0)*Tabelle1[[#This Row],[Dauer (in Minuten)]]/60,1) -> 1 | I106: =ROUND(Tabelle1[[#This Row],[Dauer pro Jahr (in Stunden)]]/$L$2,1) -> 0.1
A107: Fürsorge | B107: Gesundheit | C107: U-Termine Kinder ausmachen | D107: jährlich | E107: Laura | F107: nein | G107: 10 | H107: =ROUND(VLOOKUP(Tabelle1[[#This Row],[Frequenz]],K:L,2,0)*Tabelle1[[#This Row],[Dauer (in Minuten)]]/60,1) -> 0.2 | I107: =ROUND(Tabelle1[[#This Row],[Dauer pro Jahr (in Stunden)]]/$L$2,1) -> 0
A108: Fürsorge | B108: Gesundheit | C108: Vorsorgetermine Kinderarzt (U-Termine, Impfungen) wahrnehmen | D108: monatlich | E108: Anton | F108: ja | G108: 60 | H108: =ROUND(VLOOKUP(Tabelle1[[#This Row],[Frequenz]],K:L,2,0)*Tabelle1[[#This Row],[Dauer (in Minuten)]]/60,1) -> 12 | I108: =ROUND(Tabelle1[[#This Row],[Dauer pro Jahr (in Stunden)]]/$L$2,1) -> 1.5
A109: Fürsorge | B109: Haustier | C109: Betreuung im Urlaub organisieren | D109: vierteljährlich | E109: Laura | F109: nein | G109: 20 | H109: =ROUND(VLOOKUP(Tabelle1[[#This Row],[Frequenz]],K:L,2,0)*Tabelle1[[#This Row],[Dauer (in Minuten)]]/60,1) -> 1.3 | I109: =ROUND(Tabelle1[[#This Row],[Dauer pro Jahr (in Stunden)]]/$L$2,1) -> 0.2
A110: Fürsorge | B110: Haustier | C110: Futter / Zubehör kaufen | D110: wöchentlich | E110: Beide | F110: nein | H110: =ROUND(VLOOKUP(Tabelle1[[#This Row],[Frequenz]],K:L,2,0)*Tabelle1[[#This Row],[Dauer (in Minuten)]]/60,1) -> 0 | I110: =ROUND(Tabelle1[[#This Row],[Dauer pro Jahr (in Stunden)]]/$L$2,1) -> 0
A111: Fürsorge | B111: Haustier | C111: Gassi gehen | D111: täglich | E111: Beide | F111: ja | H111: =ROUND(VLOOKUP(Tabelle1[[#This Row],[Frequenz]],K:L,2,0)*Tabelle1[[#This Row],[Dauer (in Minuten)]]/60,1) -> 0 | I111: =ROUND(Tabelle1[[#This Row],[Dauer pro Jahr (in Stunden)]]/$L$2,1) -> 0
A112: Fürsorge | B112: Haustier | C112: Tierarzttermine ausmachen | D112: vierteljährlich | E112: Beide | F112: nein | H112: =ROUND(VLOOKUP(Tabelle1[[#This Row],[Frequenz]],K:L,2,0)*Tabelle1[[#This Row],[Dauer (in Minuten)]]/60,1) -> 0 | I112: =ROUND(Tabelle1[[#This Row],[Dauer pro Jahr (in Stunden)]]/$L$2,1) -> 0
A113: Fürsorge | B113: Haustier | C113: Tierarzttermine wahrnehmen | D113: vierteljährlich | E113: Beide | F113: ja | H113: =ROUND(VLOOKUP(Tabelle1[[#This Row],[Frequenz]],K:L,2,0)*Tabelle1[[#This Row],[Dauer (in Minuten)]]/60,1) -> 0 | I113: =ROUND(Tabelle1[[#This Row],[Dauer pro Jahr (in Stunden)]]/$L$2,1) -> 0
A114: Fürsorge | B114: Kindergarten | C114: Bastelmaterial sammeln und mitgeben | D114: monatlich | E114: Anton | F114: ja | G114: 10 | H114: =ROUND(VLOOKUP(Tabelle1[[#This Row],[Frequenz]],K:L,2,0)*Tabelle1[[#This Row],[Dauer (in Minuten)]]/60,1) -> 2 | I114: =ROUND(Tabelle1[[#This Row],[Dauer pro Jahr (in Stunden)]]/$L$2,1) -> 0.3
A115: Fürsorge | B115: Kindergarten | C115: Begleitung Feste und Veranstaltung | D115: vierteljährlich | E115: Anton | F115: ja | G115: 120 | H115: =ROUND(VLOOKUP(Tabelle1[[#This Row],[Frequenz]],K:L,2,0)*Tabelle1[[#This Row],[Dauer (in Minuten)]]/60,1) -> 8 | I115: =ROUND(Tabelle1[[#This Row],[Dauer pro Jahr (in Stunden)]]/$L$2,1) -> 1
A116: Fürsorge | B116: Kindergarten | C116: Freundebücher ausfüllen, Foto besorgen und einkleben | D116: vierteljährlich | E116: Anton | F116: ja | G116: 10 | H116: =ROUND(VLOOKUP(Tabelle1[[#This Row],[Frequenz]],K:L,2,0)*Tabelle1[[#This Row],[Dauer (in Minuten)]]/60,1) -> 0.7 | I116: =ROUND(Tabelle1[[#This Row],[Dauer pro Jahr (in Stunden)]]/$L$2,1) -> 0.1
A117: Fürsorge | B117: Kindergarten | C117: Frühstücksgeld bezahlen | D117: monatlich | E117: Anton | F117: nein | G117: 5 | H117: =ROUND(VLOOKUP(Tabelle1[[#This Row],[Frequenz]],K:L,2,0)*Tabelle1[[#This Row],[Dauer (in Minuten)]]/60,1) -> 1 | I117: =ROUND(Tabelle1[[#This Row],[Dauer pro Jahr (in Stunden)]]/$L$2,1) -> 0.1
A118: Fürsorge | B118: Kindergarten | C118: Kinder abholen | D118: täglich | E118: Laura | F118: ja | G118: 15 | H118: =ROUND(VLOOKUP(Tabelle1[[#This Row],[Frequenz]],K:L,2,0)*Tabelle1[[#This Row],[Dauer (in Minuten)]]/60,1) -> 91.3 | I118: =ROUND(Tabelle1[[#This Row],[Dauer pro Jahr (in Stunden)]]/$L$2,1) -> 11.4
A119: Fürsorge | B119: Kindergarten | C119: Kinder hinbringen | D119: täglich | E119: Anton | F119: ja | G119: 15 | H119: =ROUND(VLOOKUP(Tabelle1[[#This Row],[Frequenz]],K:L,2,0)*Tabelle1[[#This Row],[Dauer (in Minuten)]]/60,1) -> 91.3 | I119: =ROUND(Tabelle1[[#This Row],[Dauer pro Jahr (in Stunden)]]/$L$2,1) -> 11.4
A120: Fürsorge | B120: Kindergarten | C120: Wechselkleider austauschen, vervollständigen | D120: vierteljährlich | E120: Anton | F120: ja | G120: 20 | H120: =ROUND(VLOOKUP(Tabelle1[[#This Row],[Frequenz]],K:L,2,0)*Tabelle1[[#This Row],[Dauer (in Minuten)]]/60,1) -> 1.3 | I120: =ROUND(Tabelle1[[#This Row],[Dauer pro Jahr (in Stunden)]]/$L$2,1) -> 0.2
A121: Fürsorge | B121: Kindergarten | C121: WhatsApp-Gruppe teilnehmen | D121: wöchentlich | E121: Anton | F121: nein | G121: 5 | H121: =ROUND(VLOOKUP(Tabelle1[[#This Row],[Frequenz]],K:L,2,0)*Tabelle1[[#This Row],[Dauer (in Minuten)]]/60,1) -> 4.3 | I121: =ROUND(Tabelle1[[#This Row],[Dauer pro Jahr (in Stunden)]]/$L$2,1) -> 0.5
A122: Fürsorge | B122: Kindergarten | C122: Windeln und Feuchttücher auffüllen | D122: monatlich | E122: Anton | F122: nein | G122: 10 | H122: =ROUND(VLOOKUP(Tabelle1[[#This Row],[Frequenz]],K:L,2,0)*Tabelle1[[#This Row],[Dauer (in Minuten)]]/60,1) -> 2 | I122: =ROUND(Tabelle1[[#This Row],[Dauer pro Jahr (in Stunden)]]/$L$2,1) -> 0.3
A123: Fürsorge | B123: Schule | C123: Brotdosen füllen, leeren, reinigen | D123: täglich | E123: Laura | F123: ja | G123: 15 | H123: =ROUND(VLOOKUP(Tabelle1[[#This Row],[Frequenz]],K:L,2,0)*Tabelle1[[#This Row],[Dauer (in Minuten)]]/60,1) -> 91.3 | I123: =ROUND(Tabelle1[[#This Row],[Dauer pro Jahr (in Stunden)]]/$L$2,1) -> 11.4
A124: Fürsorge | B124: Schule | C124: Buffet-Beiträge organisieren | D124: vierteljährlich | E124: Laura | F124: ja | G124: 20 | H124: =ROUND(VLOOKUP(Tabelle1[[#This Row],[Frequenz]],K:L,2,0)*Tabelle1[[#This Row],[Dauer (in Minuten)]]/60,1) -> 1.3 | I124: =ROUND(Tabelle1[[#This Row],[Dauer pro Jahr (in Stunden)]]/$L$2,1) -> 0.2
A125: Fürsorge | B125: Schule | C125: Elternbriefe lesen, bearbeiten, abheften | D125: wöchentlich | E125: Laura | F125: ja | G125: 10 | H125: =ROUND(VLOOKUP(Tabelle1[[#This Row],[Frequenz]],K:L,2,0)*Tabelle1[[#This Row],[Dauer (in Minuten)]]/60,1) -> 8.7 | I125: =ROUND(Tabelle1[[#This Row],[Dauer pro Jahr (in Stunden)]]/$L$2,1) -> 1.1
A126: Fürsorge | B126: Schule | C126: Hausaufgaben kontrollieren | D126: täglich | E126: Laura | F126: ja | G126: 5 | H126: =ROUND(VLOOKUP(Tabelle1[[#This Row],[Frequenz]],K:L,2,0)*Tabelle1[[#This Row],[Dauer (in Minuten)]]/60,1) -> 30.4 | I126: =ROUND(Tabelle1[[#This Row],[Dauer pro Jahr (in Stunden)]]/$L$2,1) -> 3.8
A127: Fürsorge | B127: Schule | C127: Hefte, Stifte, Schulsachen inspizieren, nachkaufen | D127: monatlich | E127: Laura | F127: ja | G127: 10 | H127: =ROUND(VLOOKUP(Tabelle1[[#This Row],[Frequenz]],K:L,2,0)*Tabelle1[[#This Row],[Dauer (in Minuten)]]/60,1) -> 2 | I127: =ROUND(Tabelle1[[#This Row],[Dauer pro Jahr (in Stunden)]]/$L$2,1) -> 0.3
A128: Fürsorge | B128: Schule | C128: Kinder wecken | D128: täglich | E128: Laura | F128: ja | G128: 5 | H128: =ROUND(VLOOKUP(Tabelle1[[#This Row],[Frequenz]],K:L,2,0)*Tabelle1[[#This Row],[Dauer (in Minuten)]]/60,1) -> 30.4 | I128: =ROUND(Tabelle1[[#This Row],[Dauer pro Jahr (in Stunden)]]/$L$2,1) -> 3.8
A129: Fürsorge | B129: Schule | C129: mit den Kindern für Klassenarbeiten lernen | D129: monatlich | E129: Laura | F129: ja | G129: 20 | H129: =ROUND(VLOOKUP(Tabelle1[[#This Row],[Frequenz]],K:L,2,0)*Tabelle1[[#This Row],[Dauer (in Minuten)]]/60,1) -> 4 | I129: =ROUND(Tabelle1[[#This Row],[Dauer pro Jahr (in Stunden)]]/$L$2,1) -> 0.5
A130: Fürsorge | B130: Schule | C130: Schulveranstaltungen: Kind begleiten, abholen, organisieren | D130: halbjährlich | E130: Laura | F130: ja | G130: 120 | H130: =ROUND(VLOOKUP(Tabelle1[[#This Row],[Frequenz]],K:L,2,0)*Tabelle1[[#This Row],[Dauer (in Minuten)]]/60,1) -> 4 | I130: =ROUND(Tabelle1[[#This Row],[Dauer pro Jahr (in Stunden)]]/$L$2,1) -> 0.5
A131: Fürsorge | B131: Schule | C131: verlorene Sachen suchen | D131: monatlich | E131: Laura | F131: ja | G131: 20 | H131: =ROUND(VLOOKUP(Tabelle1[[#This Row],[Frequenz]],K:L,2,0)*Tabelle1[[#This Row],[Dauer (in Minuten)]]/60,1) -> 4 | I131: =ROUND(Tabelle1[[#This Row],[Dauer pro Jahr (in Stunden)]]/$L$2,1) -> 0.5
A132: Fürsorge | B132: Schule | C132: Wecker stellen | D132: täglich | E132: Laura | F132: nein | G132: 2 | H132: =ROUND(VLOOKUP(Tabelle1[[#This Row],[Frequenz]],K:L,2,0)*Tabelle1[[#This Row],[Dauer (in Minuten)]]/60,1) -> 12.2 | I132: =ROUND(Tabelle1[[#This Row],[Dauer pro Jahr (in Stunden)]]/$L$2,1) -> 1.5
A133: Fürsorge | B133: Selbstfürsorge | C133: Paarzeit organisieren | D133: monatlich | E133: Laura | F133: nein | G133: 20 | H133: =ROUND(VLOOKUP(Tabelle1[[#This Row],[Frequenz]],K:L,2,0)*Tabelle1[[#This Row],[Dauer (in Minuten)]]/60,1) -> 4 | I133: =ROUND(Tabelle1[[#This Row],[Dauer pro Jahr (in Stunden)]]/$L$2,1) -> 0.5
A134: Fürsorge | B134: Selbstfürsorge | C134: Zeit für sich (Partner 1) | D134: wöchentlich | E134: Laura | F134: nein | G134: 120 | H134: =ROUND(VLOOKUP(Tabelle1[[#This Row],[Frequenz]],K:L,2,0)*Tabelle1[[#This Row],[Dauer (in Minuten)]]/60,1) -> 104 | I134: =ROUND(Tabelle1[[#This Row],[Dauer pro Jahr (in Stunden)]]/$L$2,1) -> 13
A135: Fürsorge | B135: Selbstfürsorge | C135: Zeit für sich (Partner 2) | D135: wöchentlich | E135: Anton | F135: nein | G135: 120 | H135: =ROUND(VLOOKUP(Tabelle1[[#This Row],[Frequenz]],K:L,2,0)*Tabelle1[[#This Row],[Dauer (in Minuten)]]/60,1) -> 104 | I135: =ROUND(Tabelle1[[#This Row],[Dauer pro Jahr (in Stunden)]]/$L$2,1) -> 13
A136: Fürsorge | B136: Soziale Kontakte | C136: Fotos / Mails an Verwandte schicken, Kontakt halten, anrufen | D136: vierteljährlich | E136: Laura | F136: nein | G136: 20 | H136: =ROUND(VLOOKUP(Tabelle1[[#This Row],[Frequenz]],K:L,2,0)*Tabelle1[[#This Row],[Dauer (in Minuten)]]/60,1) -> 1.3 | I136: =ROUND(Tabelle1[[#This Row],[Dauer pro Jahr (in Stunden)]]/$L$2,1) -> 0.2
A137: Fürsorge | B137: Soziale Kontakte | C137: Freunde einladen, kochen, backen | D137: vierteljährlich | E137: Laura | F137: ja | G137: 120 | H137: =ROUND(VLOOKUP(Tabelle1[[#This Row],[Frequenz]],K:L,2,0)*Tabelle1[[#This Row],[Dauer (in Minuten)]]/60,1) -> 8 | I137: =ROUND(Tabelle1[[#This Row],[Dauer pro Jahr (in Stunden)]]/$L$2,1) -> 1
A138: Fürsorge | B138: Soziale Kontakte | C138: Freundschaften pflegen: anrufen, mailen, Kontakt halten | D138: monatlich | E138: Laura | F138: nein | G138: 40 | H138: =ROUND(VLOOKUP(Tabelle1[[#This Row],[Frequenz]],K:L,2,0)*Tabelle1[[#This Row],[Dauer (in Minuten)]]/60,1) -> 8 | I138: =ROUND(Tabelle1[[#This Row],[Dauer pro Jahr (in Stunden)]]/$L$2,1) -> 1
A139: Fürsorge | B139: Soziale Kontakte | C139: Mitbring-Geschenke besorgen bei Besuchen | D139: monatlich | E139: Laura | F139: nein | G139: 15 | H139: =ROUND(VLOOKUP(Tabelle1[[#This Row],[Frequenz]],K:L,2,0)*Tabelle1[[#This Row],[Dauer (in Minuten)]]/60,1) -> 3 | I139: =ROUND(Tabelle1[[#This Row],[Dauer pro Jahr (in Stunden)]]/$L$2,1) -> 0.4
A140: Haushalt | B140: Elektronik / IT | C140: Computer: warten, Virenschutz, Backup | D140: monatlich | E140: Anton | F140: ja | G140: 30 | H140: =ROUND(VLOOKUP(Tabelle1[[#This Row],[Frequenz]],K:L,2,0)*Tabelle1[[#This Row],[Dauer (in Minuten)]]/60,1) -> 6 | I140: =ROUND(Tabelle1[[#This Row],[Dauer pro Jahr (in Stunden)]]/$L$2,1) -> 0.8
A141: Haushalt | B141: Elektronik / IT | C141: Fernseher: einstellen, Streamingdienste abonnieren / kündigen | D141: vierteljährlich | E141: Beide | F141: ja | G141: 10 | H141: =ROUND(VLOOKUP(Tabelle1[[#This Row],[Frequenz]],K:L,2,0)*Tabelle1[[#This Row],[Dauer (in Minuten)]]/60,1) -> 0.7 | I141: =ROUND(Tabelle1[[#This Row],[Dauer pro Jahr (in Stunden)]]/$L$2,1) -> 0.1
A142: Haushalt | B142: Elektronik / IT | C142: Telefonvertrag, Telefonanlage, Batterien | D142: jährlich | E142: Anton | F142: ja | G142: 10 | H142: =ROUND(VLOOKUP(Tabelle1[[#This Row],[Frequenz]],K:L,2,0)*Tabelle1[[#This Row],[Dauer (in Minuten)]]/60,1) -> 0.2 | I142: =ROUND(Tabelle1[[#This Row],[Dauer pro Jahr (in Stunden)]]/$L$2,1) -> 0
A143: Haushalt | B143: Elektronik / IT | C143: W-Lan: Router, Verbindung, Vertrag | D143: monatlich | E143: Anton | F143: ja | G143: 20 | H143: =ROUND(VLOOKUP(Tabelle1[[#This Row],[Frequenz]],K:L,2,0)*Tabelle1[[#This Row],[Dauer (in Minuten)]]/60,1) -> 4 | I143: =ROUND(Tabelle1[[#This Row],[Dauer pro Jahr (in Stunden)]]/$L$2,1) -> 0.5
A144: Haushalt | B144: Gartenarbeit | C144: Rasen mähen | D144: monatlich | E144: Anton | F144: ja | G144: 30 | H144: =ROUND(VLOOKUP(Tabelle1[[#This Row],[Frequenz]],K:L,2,0)*Tabelle1[[#This Row],[Dauer (in Minuten)]]/60,1) -> 6 | I144: =ROUND(Tabelle1[[#This Row],[Dauer pro Jahr (in Stunden)]]/$L$2,1) -> 0.8
A145: Haushalt | B145: Gartenarbeit | C145: Terrasse sauber halten | D145: monatlich | E145: Beide | F145: ja | G145: 30 | H145: =ROUND(VLOOKUP(Tabelle1[[#This Row],[Frequenz]],K:L,2,0)*Tabelle1[[#This Row],[Dauer (in Minuten)]]/60,1) -> 6 | I145: =ROUND(Tabelle1[[#This Row],[Dauer pro Jahr (in Stunden)]]/$L$2,1) -> 0.8
A146: Haushalt | B146: Gartenarbeit | C146: Terrassenmöbel aufbauen und abbauen | D146: jährlich | E146: Anton | F146: ja | G146: 45 | H146: =ROUND(VLOOKUP(Tabelle1[[#This Row],[Frequenz]],K:L,2,0)*Tabelle1[[#This Row],[Dauer (in Minuten)]]/60,1) -> 0.8 | I146: =ROUND(Tabelle1[[#This Row],[Dauer pro Jahr (in Stunden)]]/$L$2,1) -> 0.1
A147: Haushalt | B147: Instandhaltung | D147: wöchentlich | E147: Anton | F147: nein | G147: 15 | H147: =ROUND(VLOOKUP(Tabelle1[[#This Row],[Frequenz]],K:L,2,0)*Tabelle1[[#This Row],[Dauer (in Minuten)]]/60,1) -> 13 | I147: =ROUND(Tabelle1[[#This Row],[Dauer pro Jahr (in Stunden)]]/$L$2,1) -> 1.6
A148: Haushalt | B148: Instandhaltung | C148: Abgelaufene, schimmelige Vorräte entsorgen | D148: vierteljährlich | E148: Laura | F148: ja | G148: 10 | H148: =ROUND(VLOOKUP(Tabelle1[[#This Row],[Frequenz]],K:L,2,0)*Tabelle1[[#This Row],[Dauer (in Minuten)]]/60,1) -> 0.7 | I148: =ROUND(Tabelle1[[#This Row],[Dauer pro Jahr (in Stunden)]]/$L$2,1) -> 0.1
A149: Haushalt | B149: Instandhaltung | C149: Akkus aufladen, Akkus pflegen, austauschen | D149: wöchentlich | E149: Anton | F149: ja | G149: 5 | H149: =ROUND(VLOOKUP(Tabelle1[[#This Row],[Frequenz]],K:L,2,0)*Tabelle1[[#This Row],[Dauer (in Minuten)]]/60,1) -> 4.3 | I149: =ROUND(Tabelle1[[#This Row],[Dauer pro Jahr (in Stunden)]]/$L$2,1) -> 0.5
A150: Haushalt | B150: Instandhaltung | C150: Blumen gießen | D150: täglich | E150: Laura | F150: ja | G150: 2 | H150: =ROUND(VLOOKUP(Tabelle1[[#This Row],[Frequenz]],K:L,2,0)*Tabelle1[[#This Row],[Dauer (in Minuten)]]/60,1) -> 12.2 | I150: =ROUND(Tabelle1[[#This Row],[Dauer pro Jahr (in Stunden)]]/$L$2,1) -> 1.5
A151: Haushalt | B151: Instandhaltung | C151: Drogerieartikel einkaufen | D151: monatlich | E151: Anton | F151: ja | G151: 30 | H151: =ROUND(VLOOKUP(Tabelle1[[#This Row],[Frequenz]],K:L,2,0)*Tabelle1[[#This Row],[Dauer (in Minuten)]]/60,1) -> 6 | I151: =ROUND(Tabelle1[[#This Row],[Dauer pro Jahr (in Stunden)]]/$L$2,1) -> 0.8
A152: Haushalt | B152: Instandhaltung | C152: Elektroschrott entsorgen | D152: jährlich | E152: Anton | F152: ja | G152: 30 | H152: =ROUND(VLOOKUP(Tabelle1[[#This Row],[Frequenz]],K:L,2,0)*Tabelle1[[#This Row],[Dauer (in Minuten)]]/60,1) -> 0.5 | I152: =ROUND(Tabelle1[[#This Row],[Dauer pro Jahr (in Stunden)]]/$L$2,1) -> 0.1
A153: Haushalt | B153: Instandhaltung | C153: Fahrräder in Stand halten | D153: vierteljährlich | E153: Anton | F153: ja | G153: 120 | H153: =ROUND(VLOOKUP(Tabelle1[[#This Row],[Frequenz]],K:L,2,0)*Tabelle1[[#This Row],[Dauer (in Minuten)]]/60,1) -> 8 | I153: =ROUND(Tabelle1[[#This Row],[Dauer pro Jahr (in Stunden)]]/$L$2,1) -> 1
A154: Haushalt | B154: Instandhaltung | C154: Glühbirnen austauschen | D154: akut | E154: Anton | F154: ja | G154: 10 | H154: =ROUND(VLOOKUP(Tabelle1[[#This Row],[Frequenz]],K:L,2,0)*Tabelle1[[#This Row],[Dauer (in Minuten)]]/60,1) -> 0.2 | I154: =ROUND(Tabelle1[[#This Row],[Dauer pro Jahr (in Stunden)]]/$L$2,1) -> 0
A155: Haushalt | B155: Instandhaltung | C155: Handwerker buchen | D155: akut | E155: Beide | F155: nein | G155: 15 | H155: =ROUND(VLOOKUP(Tabelle1[[#This Row],[Frequenz]],K:L,2,0)*Tabelle1[[#This Row],[Dauer (in Minuten)]]/60,1) -> 0.3 | I155: =ROUND(Tabelle1[[#This Row],[Dauer pro Jahr (in Stunden)]]/$L$2,1) -> 0
A156: Haushalt | B156: Instandhaltung | C156: Haushaltsgeräte reparieren (lassen) | D156: akut | E156: Anton | F156: nein | G156: 30 | H156: =ROUND(VLOOKUP(Tabelle1[[#This Row],[Frequenz]],K:L,2,0)*Tabelle1[[#This Row],[Dauer (in Minuten)]]/60,1) -> 0.5 | I156: =ROUND(Tabelle1[[#This Row],[Dauer pro Jahr (in Stunden)]]/$L$2,1) -> 0.1
A157: Haushalt | B157: Instandhaltung | C157: Kaffeemaschine, Waschmaschine, Spülmaschine entkalken | D157: vierteljährlich | E157: Anton | F157: ja | G157: 20 | H157: =ROUND(VLOOKUP(Tabelle1[[#This Row],[Frequenz]],K:L,2,0)*Tabelle1[[#This Row],[Dauer (in Minuten)]]/60,1) -> 1.3 | I157: =ROUND(Tabelle1[[#This Row],[Dauer pro Jahr (in Stunden)]]/$L$2,1) -> 0.2
A158: Haushalt | B158: Instandhaltung | C158: Knöpfe annähen / Löcher in Kleidung stopfen / Jeans flicken | D158: vierteljährlich | E158: Laura | F158: ja | G158: 40 | H158: =ROUND(VLOOKUP(Tabelle1[[#This Row],[Frequenz]],K:L,2,0)*Tabelle1[[#This Row],[Dauer (in Minuten)]]/60,1) -> 2.7 | I158: =ROUND(Tabelle1[[#This Row],[Dauer pro Jahr (in Stunden)]]/$L$2,1) -> 0.3
A159: Haushalt | B159: Instandhaltung | C159: Mülltonnen rausstellen / reinigen | D159: wöchentlich | E159: Anton | F159: ja | G159: 10 | H159: =ROUND(VLOOKUP(Tabelle1[[#This Row],[Frequenz]],K:L,2,0)*Tabelle1[[#This Row],[Dauer (in Minuten)]]/60,1) -> 8.7 | I159: =ROUND(Tabelle1[[#This Row],[Dauer pro Jahr (in Stunden)]]/$L$2,1) -> 1.1
A160: Haushalt | B160: Instandhaltung | C160: neue Filter einsetzen (Lüftung, Staubsauger) | D160: jährlich | E160: Anton | F160: ja | G160: 5 | H160: =ROUND(VLOOKUP(Tabelle1[[#This Row],[Frequenz]],K:L,2,0)*Tabelle1[[#This Row],[Dauer (in Minuten)]]/60,1) -> 0.1 | I160: =ROUND(Tabelle1[[#This Row],[Dauer pro Jahr (in Stunden)]]/$L$2,1) -> 0
A161: Haushalt | B161: Instandhaltung | C161: Schuhe putzen | D161: monatlich | E161: Anton | F161: ja | G161: 30 | H161: =ROUND(VLOOKUP(Tabelle1[[#This Row],[Frequenz]],K:L,2,0)*Tabelle1[[#This Row],[Dauer (in Minuten)]]/60,1) -> 6 | I161: =ROUND(Tabelle1[[#This Row],[Dauer pro Jahr (in Stunden)]]/$L$2,1) -> 0.8
A162: Haushalt | B162: Instandhaltung | C162: Spielzeug aussortieren, warten, reinigen | D162: vierteljährlich | E162: Laura | F162: ja | G162: 60 | H162: =ROUND(VLOOKUP(Tabelle1[[#This Row],[Frequenz]],K:L,2,0)*Tabelle1[[#This Row],[Dauer (in Minuten)]]/60,1) -> 4 | I162: =ROUND(Tabelle1[[#This Row],[Dauer pro Jahr (in Stunden)]]/$L$2,1) -> 0.5
A163: Haushalt | B163: Instandhaltung | C163: Staubsaugerbeutel wechseln / kaufen | D163: vierteljährlich | E163: Anton | F163: ja | G163: 10 | H163: =ROUND(VLOOKUP(Tabelle1[[#This Row],[Frequenz]],K:L,2,0)*Tabelle1[[#This Row],[Dauer (in Minuten)]]/60,1) -> 0.7 | I163: =ROUND(Tabelle1[[#This Row],[Dauer pro Jahr (in Stunden)]]/$L$2,1) -> 0.1
A164: Haushalt | B164: Instandhaltung | C164: Verkauf von unbenötigten Gegenständen | D164: halbjährlich | E164: Beide | F164: ja | G164: 60 | H164: =ROUND(VLOOKUP(Tabelle1[[#This Row],[Frequenz]],K:L,2,0)*Tabelle1[[#This Row],[Dauer (in Minuten)]]/60,1) -> 2 | I164: =ROUND(Tabelle1[[#This Row],[Dauer pro Jahr (in Stunden)]]/$L$2,1) -> 0.3
A165: Haushalt | B165: Ordnung Küche | C165: abends die Küche aufräumem | D165: täglich | E165: Laura | F165: ja | G165: 30 | H165: =ROUND(VLOOKUP(Tabelle1[[#This Row],[Frequenz]],K:L,2,0)*Tabelle1[[#This Row],[Dauer (in Minuten)]]/60,1) -> 182.5 | I165: =ROUND(Tabelle1[[#This Row],[Dauer pro Jahr (in Stunden)]]/$L$2,1) -> 22.8
A166: Haushalt | B166: Ordnung Küche | C166: Arbeitsflächen Küche wischen | D166: täglich | E166: Laura | F166: ja | G166: 10 | H166: =ROUND(VLOOKUP(Tabelle1[[#This Row],[Frequenz]],K:L,2,0)*Tabelle1[[#This Row],[Dauer (in Minuten)]]/60,1) -> 60.8 | I166: =ROUND(Tabelle1[[#This Row],[Dauer pro Jahr (in Stunden)]]/$L$2,1) -> 7.6
A167: Haushalt | B167: Ordnung Küche | C167: Boden saugen nach dem Essen | D167: täglich | E167: Laura | F167: ja | G167: 20 | H167: =ROUND(VLOOKUP(Tabelle1[[#This Row],[Frequenz]],K:L,2,0)*Tabelle1[[#This Row],[Dauer (in Minuten)]]/60,1) -> 121.7 | I167: =ROUND(Tabelle1[[#This Row],[Dauer pro Jahr (in Stunden)]]/$L$2,1) -> 15.2
A168: Haushalt | B168: Ordnung Küche | C168: Esstisch abwischen | D168: täglich | E168: Laura | F168: ja | G168: 5 | H168: =ROUND(VLOOKUP(Tabelle1[[#This Row],[Frequenz]],K:L,2,0)*Tabelle1[[#This Row],[Dauer (in Minuten)]]/60,1) -> 30.4 | I168: =ROUND(Tabelle1[[#This Row],[Dauer pro Jahr (in Stunden)]]/$L$2,1) -> 3.8
A169: Haushalt | B169: Ordnung Küche | C169: Herd sauber machen | D169: täglich | E169: Laura | F169: ja | G169: 5 | H169: =ROUND(VLOOKUP(Tabelle1[[#This Row],[Frequenz]],K:L,2,0)*Tabelle1[[#This Row],[Dauer (in Minuten)]]/60,1) -> 30.4 | I169: =ROUND(Tabelle1[[#This Row],[Dauer pro Jahr (in Stunden)]]/$L$2,1) -> 3.8
A170: Haushalt | B170: Ordnung Küche | C170: Küchenschränke ausputzen | D170: vierteljährlich | E170: Laura | F170: ja | G170: 120 | H170: =ROUND(VLOOKUP(Tabelle1[[#This Row],[Frequenz]],K:L,2,0)*Tabelle1[[#This Row],[Dauer (in Minuten)]]/60,1) -> 8 | I170: =ROUND(Tabelle1[[#This Row],[Dauer pro Jahr (in Stunden)]]/$L$2,1) -> 1
A171: Haushalt | B171: Ordnung Küche | C171: Küchenspüle putzen | D171: täglich | E171: Laura | F171: ja | G171: 5 | H171: =ROUND(VLOOKUP(Tabelle1[[#This Row],[Frequenz]],K:L,2,0)*Tabelle1[[#This Row],[Dauer (in Minuten)]]/60,1) -> 30.4 | I171: =ROUND(Tabelle1[[#This Row],[Dauer pro Jahr (in Stunden)]]/$L$2,1) -> 3.8
A172: Haushalt | B172: Ordnung Küche | C172: Sieb Geschirrspüler reinigen | D172: monatlich | E172: Laura | F172: ja | G172: 5 | H172: =ROUND(VLOOKUP(Tabelle1[[#This Row],[Frequenz]],K:L,2,0)*Tabelle1[[#This Row],[Dauer (in Minuten)]]/60,1) -> 1 | I172: =ROUND(Tabelle1[[#This Row],[Dauer pro Jahr (in Stunden)]]/$L$2,1) -> 0.1
A173: Haushalt | B173: Ordnung Küche | C173: Spülmaschine ausräumen | D173: täglich | E173: Beide | F173: ja | G173: 10 | H173: =ROUND(VLOOKUP(Tabelle1[[#This Row],[Frequenz]],K:L,2,0)*Tabelle1[[#This Row],[Dauer (in Minuten)]]/60,1) -> 60.8 | I173: =ROUND(Tabelle1[[#This Row],[Dauer pro Jahr (in Stunden)]]/$L$2,1) -> 7.6
A174: Haushalt | B174: Ordnung Wohnraum | C174: Betten machen | D174: täglich | E174: Laura | F174: ja | G174: 5 | H174: =ROUND(VLOOKUP(Tabelle1[[#This Row],[Frequenz]],K:L,2,0)*Tabelle1[[#This Row],[Dauer (in Minuten)]]/60,1) -> 30.4 | I174: =ROUND(Tabelle1[[#This Row],[Dauer pro Jahr (in Stunden)]]/$L$2,1) -> 3.8
A175: Haushalt | B175: Ordnung Wohnraum | C175: Kinderzimmer aufräumen | D175: täglich | E175: Laura | F175: ja | G175: 15 | H175: =ROUND(VLOOKUP(Tabelle1[[#This Row],[Frequenz]],K:L,2,0)*Tabelle1[[#This Row],[Dauer (in Minuten)]]/60,1) -> 91.3 | I175: =ROUND(Tabelle1[[#This Row],[Dauer pro Jahr (in Stunden)]]/$L$2,1) -> 11.4
A176: Haushalt | B176: Ordnung Wohnraum | C176: Wohnzimmer aufräumen | D176: täglich | E176: Beide | F176: ja | G176: 15 | H176: =ROUND(VLOOKUP(Tabelle1[[#This Row],[Frequenz]],K:L,2,0)*Tabelle1[[#This Row],[Dauer (in Minuten)]]/60,1) -> 91.3 | I176: =ROUND(Tabelle1[[#This Row],[Dauer pro Jahr (in Stunden)]]/$L$2,1) -> 11.4
A177: Haushalt | B177: Putzen Bad | C177: Badewanne putzen | D177: wöchentlich | E177: Laura | F177: ja | G177: 5 | H177: =ROUND(VLOOKUP(Tabelle1[[#This Row],[Frequenz]],K:L,2,0)*Tabelle1[[#This Row],[Dauer (in Minuten)]]/60,1) -> 4.3 | I177: =ROUND(Tabelle1[[#This Row],[Dauer pro Jahr (in Stunden)]]/$L$2,1) -> 0.5
A178: Haushalt | B178: Putzen Bad | C178: Badezimmerspiegel putzen | D178: wöchentlich | E178: Laura | F178: ja | G178: 5 | H178: =ROUND(VLOOKUP(Tabelle1[[#This Row],[Frequenz]],K:L,2,0)*Tabelle1[[#This Row],[Dauer (in Minuten)]]/60,1) -> 4.3 | I178: =ROUND(Tabelle1[[#This Row],[Dauer pro Jahr (in Stunden)]]/$L$2,1) -> 0.5
A179: Haushalt | B179: Putzen Bad | C179: Dusche putzen | D179: wöchentlich | E179: Laura | F179: ja | G179: 5 | H179: =ROUND(VLOOKUP(Tabelle1[[#This Row],[Frequenz]],K:L,2,0)*Tabelle1[[#This Row],[Dauer (in Minuten)]]/60,1) -> 4.3 | I179: =ROUND(Tabelle1[[#This Row],[Dauer pro Jahr (in Stunden)]]/$L$2,1) -> 0.5
A180: Haushalt | B180: Putzen Bad | C180: Toilette putzen | D180: wöchentlich | E180: Laura | F180: ja | G180: 5 | H180: =ROUND(VLOOKUP(Tabelle1[[#This Row],[Frequenz]],K:L,2,0)*Tabelle1[[#This Row],[Dauer (in Minuten)]]/60,1) -> 4.3 | I180: =ROUND(Tabelle1[[#This Row],[Dauer pro Jahr (in Stunden)]]/$L$2,1) -> 0.5
A181: Haushalt | B181: Putzen Bad | C181: Waschbecken putzen | D181: wöchentlich | E181: Laura | F181: ja | G181: 5 | H181: =ROUND(VLOOKUP(Tabelle1[[#This Row],[Frequenz]],K:L,2,0)*Tabelle1[[#This Row],[Dauer (in Minuten)]]/60,1) -> 4.3 | I181: =ROUND(Tabelle1[[#This Row],[Dauer pro Jahr (in Stunden)]]/$L$2,1) -> 0.5
A182: Haushalt | B182: Putzen Wohnraum | C182: Böden nass wischen | D182: wöchentlich | E182: Anton | F182: ja | G182: 15 | H182: =ROUND(VLOOKUP(Tabelle1[[#This Row],[Frequenz]],K:L,2,0)*Tabelle1[[#This Row],[Dauer (in Minuten)]]/60,1) -> 13 | I182: =ROUND(Tabelle1[[#This Row],[Dauer pro Jahr (in Stunden)]]/$L$2,1) -> 1.6
A183: Haushalt | B183: Putzen Wohnraum | C183: Böden staubsaugen | D183: täglich | E183: Laura | F183: ja | G183: 15 | H183: =ROUND(VLOOKUP(Tabelle1[[#This Row],[Frequenz]],K:L,2,0)*Tabelle1[[#This Row],[Dauer (in Minuten)]]/60,1) -> 91.3 | I183: =ROUND(Tabelle1[[#This Row],[Dauer pro Jahr (in Stunden)]]/$L$2,1) -> 11.4
A184: Haushalt | B184: Putzen Wohnraum | C184: Fenster putzen | D184: vierteljährlich | E184: Anton | F184: ja | G184: 120 | H184: =ROUND(VLOOKUP(Tabelle1[[#This Row],[Frequenz]],K:L,2,0)*Tabelle1[[#This Row],[Dauer (in Minuten)]]/60,1) -> 8 | I184: =ROUND(Tabelle1[[#This Row],[Dauer pro Jahr (in Stunden)]]/$L$2,1) -> 1
A185: Haushalt | B185: Putzen Wohnraum | C185: Spinnweben saugen | D185: halbjährlich | E185: Anton | F185: ja | G185: 15 | H185: =ROUND(VLOOKUP(Tabelle1[[#This Row],[Frequenz]],K:L,2,0)*Tabelle1[[#This Row],[Dauer (in Minuten)]]/60,1) -> 0.5 | I185: =ROUND(Tabelle1[[#This Row],[Dauer pro Jahr (in Stunden)]]/$L$2,1) -> 0.1
A186: Haushalt | B186: Putzen Wohnraum | C186: Staub wischen | D186: wöchentlich | E186: Anton | F186: ja | G186: 15 | H186: =ROUND(VLOOKUP(Tabelle1[[#This Row],[Frequenz]],K:L,2,0)*Tabelle1[[#This Row],[Dauer (in Minuten)]]/60,1) -> 13 | I186: =ROUND(Tabelle1[[#This Row],[Dauer pro Jahr (in Stunden)]]/$L$2,1) -> 1.6
A187: Haushalt | B187: Putzen Wohnraum | C187: Türen und Klinken putzen | D187: monatlich | E187: Anton | F187: ja | G187: 5 | H187: =ROUND(VLOOKUP(Tabelle1[[#This Row],[Frequenz]],K:L,2,0)*Tabelle1[[#This Row],[Dauer (in Minuten)]]/60,1) -> 1 | I187: =ROUND(Tabelle1[[#This Row],[Dauer pro Jahr (in Stunden)]]/$L$2,1) -> 0.1
A188: Haushalt | B188: Putzen Wohnraum | C188: Wohnung lüften | D188: täglich | E188: Laura | F188: ja | G188: 5 | H188: =ROUND(VLOOKUP(Tabelle1[[#This Row],[Frequenz]],K:L,2,0)*Tabelle1[[#This Row],[Dauer (in Minuten)]]/60,1) -> 30.4 | I188: =ROUND(Tabelle1[[#This Row],[Dauer pro Jahr (in Stunden)]]/$L$2,1) -> 3.8
A189: Haushalt | B189: Wäsche | C189: Badezimmerteppich waschen | D189: monatlich | E189: Laura | F189: ja | G189: 5 | H189: =ROUND(VLOOKUP(Tabelle1[[#This Row],[Frequenz]],K:L,2,0)*Tabelle1[[#This Row],[Dauer (in Minuten)]]/60,1) -> 1 | I189: =ROUND(Tabelle1[[#This Row],[Dauer pro Jahr (in Stunden)]]/$L$2,1) -> 0.1
A190: Haushalt | B190: Wäsche | C190: Bettwäsche wechseln | D190: wöchentlich | E190: Anton | F190: ja | G190: 15 | H190: =ROUND(VLOOKUP(Tabelle1[[#This Row],[Frequenz]],K:L,2,0)*Tabelle1[[#This Row],[Dauer (in Minuten)]]/60,1) -> 13 | I190: =ROUND(Tabelle1[[#This Row],[Dauer pro Jahr (in Stunden)]]/$L$2,1) -> 1.6
A191: Haushalt | B191: Wäsche | C191: Bügeln | D191: wöchentlich | E191: Anton | F191: ja | G191: 15 | H191: =ROUND(VLOOKUP(Tabelle1[[#This Row],[Frequenz]],K:L,2,0)*Tabelle1[[#This Row],[Dauer (in Minuten)]]/60,1) -> 13 | I191: =ROUND(Tabelle1[[#This Row],[Dauer pro Jahr (in Stunden)]]/$L$2,1) -> 1.6
A192: Haushalt | B192: Wäsche | C192: Handtücher wechseln | D192: täglich | E192: Laura | F192: ja | G192: 2 | H192: =ROUND(VLOOKUP(Tabelle1[[#This Row],[Frequenz]],K:L,2,0)*Tabelle1[[#This Row],[Dauer (in Minuten)]]/60,1) -> 12.2 | I192: =ROUND(Tabelle1[[#This Row],[Dauer pro Jahr (in Stunden)]]/$L$2,1) -> 1.5
A193: Haushalt | B193: Wäsche | C193: Schmutzwäsche einsammeln | D193: täglich | E193: Laura | F193: ja | G193: 4 | H193: =ROUND(VLOOKUP(Tabelle1[[#This Row],[Frequenz]],K:L,2,0)*Tabelle1[[#This Row],[Dauer (in Minuten)]]/60,1) -> 24.3 | I193: =ROUND(Tabelle1[[#This Row],[Dauer pro Jahr (in Stunden)]]/$L$2,1) -> 3
A194: Haushalt | B194: Wäsche | C194: Wäsche in den Schrank räumen | D194: täglich | E194: Anton | F194: ja | G194: 10 | H194: =ROUND(VLOOKUP(Tabelle1[[#This Row],[Frequenz]],K:L,2,0)*Tabelle1[[#This Row],[Dauer (in Minuten)]]/60,1) -> 60.8 | I194: =ROUND(Tabelle1[[#This Row],[Dauer pro Jahr (in Stunden)]]/$L$2,1) -> 7.6
A195: Haushalt | B195: Wäsche | C195: Wäsche waschen | D195: täglich | E195: Beide | F195: ja | G195: 30 | H195: =ROUND(VLOOKUP(Tabelle1[[#This Row],[Frequenz]],K:L,2,0)*Tabelle1[[#This Row],[Dauer (in Minuten)]]/60,1) -> 182.5 | I195: =ROUND(Tabelle1[[#This Row],[Dauer pro Jahr (in Stunden)]]/$L$2,1) -> 22.8

Sheet Auswertung
B1: Verfügbare Stunden am Tag | C1: =Todo!L2 -> 8 | D1: (wird aus Todo Zelle L2 übernommen)
B2: Verfügbare Personen | C2: 2 | D2: (Anzahl eintragen)
B3: Verfügbare Tage pro Jahr | C3: 365 | D3: (Anzahl eintragen)
B4: Maximale Verfügbarkeit (in Tagen) | C4: =C3*C2 -> 730 | D4: (wird berechnet)
B5: Maximale Verfügbarkeit (in Stunden) | C5: =C4*C1 -> 5840 | D5: (wird berechnet)
J7: Dauer pro Jahr (in Tagen) | K7: Wer macht es?
B8: Rubrik | C8: Dauer pro Jahr (in Stunden) | D8: Dauer pro Jahr (in Tagen) | J8: Rubrik | K8: Anton | L8: Beide | M8: Laura | N8: Gesamt
B9: Haushalt | C9: 1319.4 | D9: 164.7 | J9: Haushalt | K9: 23.7 | L9: 43 | M9: 98 | N9: 164.7
B10: Anton | C10: 188.6 | D10: 23.7 | J10: Fürsorge | K10: 101.6 | L10: 114.1 | M10: 127.2 | N10: 342.9
B11: Beide | C11: 343.6 | D11: 43 | J11: Familien-Organisation | K11: 40.5 | L11: 17.8 | M11: 14.3 | N11: 72.6
B12: Laura | C12: 787.2 | D12: 98 | J12: Gesamt | K12: 165.8 | L12: 174.9 | M12: 239.5 | N12: 580.2
B13: Fürsorge | C13: 2740 | D13: 342.9
B14: Anton | C14: 812 | D14: 101.6
B15: Beide | C15: 913.1 | D15: 114.1
B16: Laura | C16: 1014.9 | D16: 127.2
B17: Familien-Organisation | C17: 578.9 | D17: 72.6
B18: Anton | C18: 323.9 | D18: 40.5
B19: Beide | C19: 141.9 | D19: 17.8
B20: Laura | C20: 113.1 | D20: 14.3
B21: Gesamt | C21: 4638.3 | D21: 580.2

Sheet Details
A1: Aufgabe (wird autmatisch aus Todo übernommen) | B1: Bemerkung (hier können Details zur Aufgabe notiert werden)
A2: =IFERROR(Tabelle1[[#This Row],[Aufgabe]],"") -> Auto putzen
A3: =IFERROR(Tabelle1[[#This Row],[Aufgabe]],"") -> Kindersitze: putzen, einstellen, austauschen
A4: =IFERROR(Tabelle1[[#This Row],[Aufgabe]],"") -> Reifen wechseln: selber machen oder sich um Werkstatt-Termin kümmern
A5: =IFERROR(Tabelle1[[#This Row],[Aufgabe]],"") -> Tanken
A6: =IFERROR(Tabelle1[[#This Row],[Aufgabe]],"") -> TÜV
A7: =IFERROR(Tabelle1[[#This Row],[Aufgabe]],"") -> Versicherungen: überprüfen, bezahlen, abheften
A8: =IFERROR(Tabelle1[[#This Row],[Aufgabe]],"") -> Werkstatttermine Auto, akutes Problem: Termin ausmachen, Auto hinbringen, wieder abholen, Rechnung bezahlen
A9: =IFERROR(Tabelle1[[#This Row],[Aufgabe]],"") -> Bargeld abheben
A10: =IFERROR(Tabelle1[[#This Row],[Aufgabe]],"") -> Beiträge Kindergarten / Hort / Vereine organisieren, überweisen
A11: =IFERROR(Tabelle1[[#This Row],[Aufgabe]],"") -> Belege für Steuer sammeln
A12: =IFERROR(Tabelle1[[#This Row],[Aufgabe]],"") -> Kinder-Sparbücher füllen, pflegen, überprüfen
A13: =IFERROR(Tabelle1[[#This Row],[Aufgabe]],"") -> Kontenführung Familie
A14: =IFERROR(Tabelle1[[#This Row],[Aufgabe]],"") -> Kontenpflege: Finanzen checken, Altersvorsorge, Betriebsrente
A15: =IFERROR(Tabelle1[[#This Row],[Aufgabe]],"") -> Kontoauszüge besorgen oder organisieren
A16: =IFERROR(Tabelle1[[#This Row],[Aufgabe]],"") -> Miete
A17: =IFERROR(Tabelle1[[#This Row],[Aufgabe]],"") -> Rechnungen begleichen
A18: =IFERROR(Tabelle1[[#This Row],[Aufgabe]],"") -> Steuererklärung machen
A19: =IFERROR(Tabelle1[[#This Row],[Aufgabe]],"") -> Wohnkredit
A20: =IFERROR(Tabelle1[[#This Row],[Aufgabe]],"") -> altersgerechte Bücher, Cds, Hörspiele kaufen / leihen
A21: =IFERROR(Tabelle1[[#This Row],[Aufgabe]],"") -> Basteln: für Schule, Kindergarten, als Freizeitbeschäftigung
A22: =IFERROR(Tabelle1[[#This Row],[Aufgabe]],"") -> Für Bewegung und frische Luft bei den Kindern sorgen
A23: =IFERROR(Tabelle1[[#This Row],[Aufgabe]],"") -> Hobbys Kinder organisieren (Vereine, Unterricht)
A24: =IFERROR(Tabelle1[[#This Row],[Aufgabe]],"") -> Kinderbetreuung organisieren (Babysitter, kranke Kinder)
A25: =IFERROR(Tabelle1[[#This Row],[Aufgabe]],"") -> Playdates organisieren (und begleiten)
A26: =IFERROR(Tabelle1[[#This Row],[Aufgabe]],"") -> Rucksack für Familienausflüge packen / auspacken
A27: =IFERROR(Tabelle1[[#This Row],[Aufgabe]],"") -> Rucksack packen / auspacken für Kinderhobbys
A28: =IFERROR(Tabelle1[[#This Row],[Aufgabe]],"") -> tägliche Fahrdienste für Kinder
A29: =IFERROR(Tabelle1[[#This Row],[Aufgabe]],"") -> Wochenende: Ausflüge planen
A30: =IFERROR(Tabelle1[[#This Row],[Aufgabe]],"") -> Kinderkleider für den nächsten Tag rauslegen
A31: =IFERROR(Tabelle1[[#This Row],[Aufgabe]],"") -> Kinderkleidung nach Jahreszeiten sortieren, waschen, aufräumen
A32: =IFERROR(Tabelle1[[#This Row],[Aufgabe]],"") -> Kleidung an andere Kinder weitergeben / verkaufen / verschenken
A33: =IFERROR(Tabelle1[[#This Row],[Aufgabe]],"") -> neue Kleider kaufen (Kinder)
A34: =IFERROR(Tabelle1[[#This Row],[Aufgabe]],"") -> Schuhgröße messen, Kinderschuhe kaufen oder der Jahreszeit anpassen
A35: =IFERROR(Tabelle1[[#This Row],[Aufgabe]],"") -> alte Zeitungen aussortieren
A36: =IFERROR(Tabelle1[[#This Row],[Aufgabe]],"") -> Handy, Schlüssel, Geldbeutel deponieren
A37: =IFERROR(Tabelle1[[#This Row],[Aufgabe]],"") -> Ordner erstellen und pflegen
A38: =IFERROR(Tabelle1[[#This Row],[Aufgabe]],"") -> Ablage machen
A39: =IFERROR(Tabelle1[[#This Row],[Aufgabe]],"") -> Post sortieren und ablegen, sichten, bewerten, bezahlen, abheften
A40: =IFERROR(Tabelle1[[#This Row],[Aufgabe]],"") -> Versicherungen checken, kündigen, abschließen
A41: =IFERROR(Tabelle1[[#This Row],[Aufgabe]],"") -> Zeitungsabo bezahlen / kündigen
A42: =IFERROR(Tabelle1[[#This Row],[Aufgabe]],"") -> Familienfeier planen
A43: =IFERROR(Tabelle1[[#This Row],[Aufgabe]],"") -> Friseurtermine Kinder: ausmachen und wahrnehmen
A44: =IFERROR(Tabelle1[[#This Row],[Aufgabe]],"") -> Kalender führen
A45: =IFERROR(Tabelle1[[#This Row],[Aufgabe]],"") -> Woche planen
A46: =IFERROR(Tabelle1[[#This Row],[Aufgabe]],"") -> Packen
A47: =IFERROR(Tabelle1[[#This Row],[Aufgabe]],"") -> Packliste machen
A48: =IFERROR(Tabelle1[[#This Row],[Aufgabe]],"") -> Proviant für die Fahrt machen
A49: =IFERROR(Tabelle1[[#This Row],[Aufgabe]],"") -> Reiseapotheke auf Vollständigkeit kontrollieren, Ersatz kaufen
A50: =IFERROR(Tabelle1[[#This Row],[Aufgabe]],"") -> Urlaub buchen und planen
A51: =IFERROR(Tabelle1[[#This Row],[Aufgabe]],"") -> Blumen aufstellen, Blumen pflanzen
A52: =IFERROR(Tabelle1[[#This Row],[Aufgabe]],"") -> Jahreszeitlich dekorieren
A53: =IFERROR(Tabelle1[[#This Row],[Aufgabe]],"") -> Babybrei kochen / kaufen
A54: =IFERROR(Tabelle1[[#This Row],[Aufgabe]],"") -> Babykurse organisieren, anmelden, besuchen
A55: =IFERROR(Tabelle1[[#This Row],[Aufgabe]],"") -> Füttern
A56: =IFERROR(Tabelle1[[#This Row],[Aufgabe]],"") -> Vitamin D geben
A57: =IFERROR(Tabelle1[[#This Row],[Aufgabe]],"") -> Wickeln
A58: =IFERROR(Tabelle1[[#This Row],[Aufgabe]],"") -> Wickeltasche packen / auspacken
A59: =IFERROR(Tabelle1[[#This Row],[Aufgabe]],"") -> Faschingskostüme kaufen / nähen
A60: =IFERROR(Tabelle1[[#This Row],[Aufgabe]],"") -> Geschenke für ErzieherIn / Tagesmutter / FußballtrainerIn besorgen
A61: =IFERROR(Tabelle1[[#This Row],[Aufgabe]],"") -> Zahnfee spielen
A62: =IFERROR(Tabelle1[[#This Row],[Aufgabe]],"") -> Gabentisch schmücken
A63: =IFERROR(Tabelle1[[#This Row],[Aufgabe]],"") -> Geburtstagskuchen backen
A64: =IFERROR(Tabelle1[[#This Row],[Aufgabe]],"") -> Geschenke für Geburtstage überlegen, abstimmen, kaufen
A65: =IFERROR(Tabelle1[[#This Row],[Aufgabe]],"") -> Kindergeburtstag organisieren
A66: =IFERROR(Tabelle1[[#This Row],[Aufgabe]],"") -> Verwandten/ Freunden zum Geburtstag gratulieren
A67: =IFERROR(Tabelle1[[#This Row],[Aufgabe]],"") -> Wünsche der Kinder merken und aufschreiben (für Geburtstage und Weihnachten)
A68: =IFERROR(Tabelle1[[#This Row],[Aufgabe]],"") -> Kleine Ostergeschenke und Süßes besorgen
A69: =IFERROR(Tabelle1[[#This Row],[Aufgabe]],"") -> Ostereier bemalen
A70: =IFERROR(Tabelle1[[#This Row],[Aufgabe]],"") -> Osterkörbchen füllen
A71: =IFERROR(Tabelle1[[#This Row],[Aufgabe]],"") -> Adventskalendergeschenke kaufen, Beutel befüllen
A72: =IFERROR(Tabelle1[[#This Row],[Aufgabe]],"") -> Adventskranz besorgen
A73: =IFERROR(Tabelle1[[#This Row],[Aufgabe]],"") -> Heilig Abend vorbereiten / organisieren
A74: =IFERROR(Tabelle1[[#This Row],[Aufgabe]],"") -> mit Kindern Wunschzettel schreiben
A75: =IFERROR(Tabelle1[[#This Row],[Aufgabe]],"") -> Plätzchen backen
A76: =IFERROR(Tabelle1[[#This Row],[Aufgabe]],"") -> Weihnachtsbaum kaufen und schmücken
A77: =IFERROR(Tabelle1[[#This Row],[Aufgabe]],"") -> Weihnachtspost schreiben
A78: =IFERROR(Tabelle1[[#This Row],[Aufgabe]],"") -> Erinnerungsalben Kinder pflegen / gestalten
A79: =IFERROR(Tabelle1[[#This Row],[Aufgabe]],"") -> Fotoalben gestalten
A80: =IFERROR(Tabelle1[[#This Row],[Aufgabe]],"") -> Fotos aufhängen
A81: =IFERROR(Tabelle1[[#This Row],[Aufgabe]],"") -> Fotos machen
A82: =IFERROR(Tabelle1[[#This Row],[Aufgabe]],"") -> Kinderkunstwerke sammeln, archivieren, aufhängen
A83: =IFERROR(Tabelle1[[#This Row],[Aufgabe]],"") -> Abendessen machen
A84: =IFERROR(Tabelle1[[#This Row],[Aufgabe]],"") -> Brot kaufen
A85: =IFERROR(Tabelle1[[#This Row],[Aufgabe]],"") -> Einkaufsliste schreiben
A86: =IFERROR(Tabelle1[[#This Row],[Aufgabe]],"") -> Essensplanung machen
A87: =IFERROR(Tabelle1[[#This Row],[Aufgabe]],"") -> Essensvorräte, Getränke einkaufen
A88: =IFERROR(Tabelle1[[#This Row],[Aufgabe]],"") -> Frühstück machen
A89: =IFERROR(Tabelle1[[#This Row],[Aufgabe]],"") -> Kochen (Wochenende)
A90: =IFERROR(Tabelle1[[#This Row],[Aufgabe]],"") -> Mittagessen kochen
A91: =IFERROR(Tabelle1[[#This Row],[Aufgabe]],"") -> Medienregeln aufstellen und auf das Einhalten achten
A92: =IFERROR(Tabelle1[[#This Row],[Aufgabe]],"") -> Taschengeld bestimmen und auszahlen
A93: =IFERROR(Tabelle1[[#This Row],[Aufgabe]],"") -> Kinder ins Bett bringen
A94: =IFERROR(Tabelle1[[#This Row],[Aufgabe]],"") -> Konflikte klären (zwischen Geschwistern oder zwischen Kindern und Freunden)
A95: =IFERROR(Tabelle1[[#This Row],[Aufgabe]],"") -> Konflikte: Aussprachen mit Kindern führen
A96: =IFERROR(Tabelle1[[#This Row],[Aufgabe]],"") -> sich um die eigenen Eltern kümmern
A97: =IFERROR(Tabelle1[[#This Row],[Aufgabe]],"") -> Augen Kinder: Sehtest, Augenarzttermin, neue Brille kaufen
A98: =IFERROR(Tabelle1[[#This Row],[Aufgabe]],"") -> Eincremen
A99: =IFERROR(Tabelle1[[#This Row],[Aufgabe]],"") -> Hausapotheke durchschauen, Ersatz kaufen, Haltbarkeit prüfen
A100: =IFERROR(Tabelle1[[#This Row],[Aufgabe]],"") -> Impfausweis kontrollieren
A101: =IFERROR(Tabelle1[[#This Row],[Aufgabe]],"") -> Kinder baden
A102: =IFERROR(Tabelle1[[#This Row],[Aufgabe]],"") -> Kindern Finger- und Fußägel schneiden
A103: =IFERROR(Tabelle1[[#This Row],[Aufgabe]],"") -> regelmäßige Medikamente geben
A104: =IFERROR(Tabelle1[[#This Row],[Aufgabe]],"") -> Rezepte holen, Medikamente besorgen
A105: =IFERROR(Tabelle1[[#This Row],[Aufgabe]],"") -> Therapie-Übungen machen (Logopädie, Ergotherapie)
A106: =IFERROR(Tabelle1[[#This Row],[Aufgabe]],"") -> Therapietermine ausmachen, planen
A107: =IFERROR(Tabelle1[[#This Row],[Aufgabe]],"") -> U-Termine Kinder ausmachen
A108: =IFERROR(Tabelle1[[#This Row],[Aufgabe]],"") -> Vorsorgetermine Kinderarzt (U-Termine, Impfungen) wahrnehmen
A109: =IFERROR(Tabelle1[[#This Row],[Aufgabe]],"") -> Betreuung im Urlaub organisieren
A110: =IFERROR(Tabelle1[[#This Row],[Aufgabe]],"") -> Futter / Zubehör kaufen
A111: =IFERROR(Tabelle1[[#This Row],[Aufgabe]],"") -> Gassi gehen
A112: =IFERROR(Tabelle1[[#This Row],[Aufgabe]],"") -> Tierarzttermine ausmachen
A113: =IFERROR(Tabelle1[[#This Row],[Aufgabe]],"") -> Tierarzttermine wahrnehmen
A114: =IFERROR(Tabelle1[[#This Row],[Aufgabe]],"") -> Bastelmaterial sammeln und mitgeben
A115: =IFERROR(Tabelle1[[#This Row],[Aufgabe]],"") -> Begleitung Feste und Veranstaltung
A116: =IFERROR(Tabelle1[[#This Row],[Aufgabe]],"") -> Freundebücher ausfüllen, Foto besorgen und einkleben
A117: =IFERROR(Tabelle1[[#This Row],[Aufgabe]],"") -> Frühstücksgeld bezahlen
A118: =IFERROR(Tabelle1[[#This Row],[Aufgabe]],"") -> Kinder abholen
A119: =IFERROR(Tabelle1[[#This Row],[Aufgabe]],"") -> Kinder hinbringen
A120: =IFERROR(Tabelle1[[#This Row],[Aufgabe]],"") -> Wechselkleider austauschen, vervollständigen
A121: =IFERROR(Tabelle1[[#This Row],[Aufgabe]],"") -> WhatsApp-Gruppe teilnehmen
A122: =IFERROR(Tabelle1[[#This Row],[Aufgabe]],"") -> Windeln und Feuchttücher auffüllen
A123: =IFERROR(Tabelle1[[#This Row],[Aufgabe]],"") -> Brotdosen füllen, leeren, reinigen
A124: =IFERROR(Tabelle1[[#This Row],[Aufgabe]],"") -> Buffet-Beiträge organisieren
A125: =IFERROR(Tabelle1[[#This Row],[Aufgabe]],"") -> Elternbriefe lesen, bearbeiten, abheften
A126: =IFERROR(Tabelle1[[#This Row],[Aufgabe]],"") -> Hausaufgaben kontrollieren
A127: =IFERROR(Tabelle1[[#This Row],[Aufgabe]],"") -> Hefte, Stifte, Schulsachen inspizieren, nachkaufen
A128: =IFERROR(Tabelle1[[#This Row],[Aufgabe]],"") -> Kinder wecken
A129: =IFERROR(Tabelle1[[#This Row],[Aufgabe]],"") -> mit den Kindern für Klassenarbeiten lernen
A130: =IFERROR(Tabelle1[[#This Row],[Aufgabe]],"") -> Schulveranstaltungen: Kind begleiten, abholen, organisieren
A131: =IFERROR(Tabelle1[[#This Row],[Aufgabe]],"") -> verlorene Sachen suchen
A132: =IFERROR(Tabelle1[[#This Row],[Aufgabe]],"") -> Wecker stellen
A133: =IFERROR(Tabelle1[[#This Row],[Aufgabe]],"") -> Paarzeit organisieren
A134: =IFERROR(Tabelle1[[#This Row],[Aufgabe]],"") -> Zeit für sich (Partner 1)
A135: =IFERROR(Tabelle1[[#This Row],[Aufgabe]],"") -> Zeit für sich (Partner 2)
A136: =IFERROR(Tabelle1[[#This Row],[Aufgabe]],"") -> Fotos / Mails an Verwandte schicken, Kontakt halten, anrufen
A137: =IFERROR(Tabelle1[[#This Row],[Aufgabe]],"") -> Freunde einladen, kochen, backen
A138: =IFERROR(Tabelle1[[#This Row],[Aufgabe]],"") -> Freundschaften pflegen: anrufen, mailen, Kontakt halten
A139: =IFERROR(Tabelle1[[#This Row],[Aufgabe]],"") -> Mitbring-Geschenke besorgen bei Besuchen
A140: =IFERROR(Tabelle1[[#This Row],[Aufgabe]],"") -> Computer: warten, Virenschutz, Backup
A141: =IFERROR(Tabelle1[[#This Row],[Aufgabe]],"") -> Fernseher: einstellen, Streamingdienste abonnieren / kündigen
A142: =IFERROR(Tabelle1[[#This Row],[Aufgabe]],"") -> Telefonvertrag, Telefonanlage, Batterien
A143: =IFERROR(Tabelle1[[#This Row],[Aufgabe]],"") -> W-Lan: Router, Verbindung, Vertrag
A144: =IFERROR(Tabelle1[[#This Row],[Aufgabe]],"") -> Rasen mähen
A145: =IFERROR(Tabelle1[[#This Row],[Aufgabe]],"") -> Terrasse sauber halten
A146: =IFERROR(Tabelle1[[#This Row],[Aufgabe]],"") -> Terrassenmöbel aufbauen und abbauen
A147: =IFERROR(Tabelle1[[#This Row],[Aufgabe]],"") -> 
A148: =IFERROR(Tabelle1[[#This Row],[Aufgabe]],"") -> Abgelaufene, schimmelige Vorräte entsorgen
A149: =IFERROR(Tabelle1[[#This Row],[Aufgabe]],"") -> Akkus aufladen, Akkus pflegen, austauschen
A150: =IFERROR(Tabelle1[[#This Row],[Aufgabe]],"") -> Blumen gießen
A151: =IFERROR(Tabelle1[[#This Row],[Aufgabe]],"") -> Drogerieartikel einkaufen
A152: =IFERROR(Tabelle1[[#This Row],[Aufgabe]],"") -> Elektroschrott entsorgen
A153: =IFERROR(Tabelle1[[#This Row],[Aufgabe]],"") -> Fahrräder in Stand halten
A154: =IFERROR(Tabelle1[[#This Row],[Aufgabe]],"") -> Glühbirnen austauschen
A155: =IFERROR(Tabelle1[[#This Row],[Aufgabe]],"") -> Handwerker buchen
A156: =IFERROR(Tabelle1[[#This Row],[Aufgabe]],"") -> Haushaltsgeräte reparieren (lassen)
A157: =IFERROR(Tabelle1[[#This Row],[Aufgabe]],"") -> Kaffeemaschine, Waschmaschine, Spülmaschine entkalken
A158: =IFERROR(Tabelle1[[#This Row],[Aufgabe]],"") -> Knöpfe annähen / Löcher in Kleidung stopfen / Jeans flicken
A159: =IFERROR(Tabelle1[[#This Row],[Aufgabe]],"") -> Mülltonnen rausstellen / reinigen
A160: =IFERROR(Tabelle1[[#This Row],[Aufgabe]],"") -> neue Filter einsetzen (Lüftung, Staubsauger)
A161: =IFERROR(Tabelle1[[#This Row],[Aufgabe]],"") -> Schuhe putzen
A162: =IFERROR(Tabelle1[[#This Row],[Aufgabe]],"") -> Spielzeug aussortieren, warten, reinigen
A163: =IFERROR(Tabelle1[[#This Row],[Aufgabe]],"") -> Staubsaugerbeutel wechseln / kaufen
A164: =IFERROR(Tabelle1[[#This Row],[Aufgabe]],"") -> Verkauf von unbenötigten Gegenständen
A165: =IFERROR(Tabelle1[[#This Row],[Aufgabe]],"") -> abends die Küche aufräumem
A166: =IFERROR(Tabelle1[[#This Row],[Aufgabe]],"") -> Arbeitsflächen Küche wischen
A167: =IFERROR(Tabelle1[[#This Row],[Aufgabe]],"") -> Boden saugen nach dem Essen
A168: =IFERROR(Tabelle1[[#This Row],[Aufgabe]],"") -> Esstisch abwischen
A169: =IFERROR(Tabelle1[[#This Row],[Aufgabe]],"") -> Herd sauber machen
A170: =IFERROR(Tabelle1[[#This Row],[Aufgabe]],"") -> Küchenschränke ausputzen
A171: =IFERROR(Tabelle1[[#This Row],[Aufgabe]],"") -> Küchenspüle putzen
A172: =IFERROR(Tabelle1[[#This Row],[Aufgabe]],"") -> Sieb Geschirrspüler reinigen
A173: =IFERROR(Tabelle1[[#This Row],[Aufgabe]],"") -> Spülmaschine ausräumen
A174: =IFERROR(Tabelle1[[#This Row],[Aufgabe]],"") -> Betten machen
A175: =IFERROR(Tabelle1[[#This Row],[Aufgabe]],"") -> Kinderzimmer aufräumen
A176: =IFERROR(Tabelle1[[#This Row],[Aufgabe]],"") -> Wohnzimmer aufräumen
A177: =IFERROR(Tabelle1[[#This Row],[Aufgabe]],"") -> Badewanne putzen
A178: =IFERROR(Tabelle1[[#This Row],[Aufgabe]],"") -> Badezimmerspiegel putzen
A179: =IFERROR(Tabelle1[[#This Row],[Aufgabe]],"") -> Dusche putzen
A180: =IFERROR(Tabelle1[[#This Row],[Aufgabe]],"") -> Toilette putzen
A181: =IFERROR(Tabelle1[[#This Row],[Aufgabe]],"") -> Waschbecken putzen
A182: =IFERROR(Tabelle1[[#This Row],[Aufgabe]],"") -> Böden nass wischen
A183: =IFERROR(Tabelle1[[#This Row],[Aufgabe]],"") -> Böden staubsaugen
A184: =IFERROR(Tabelle1[[#This Row],[Aufgabe]],"") -> Fenster putzen
A185: =IFERROR(Tabelle1[[#This Row],[Aufgabe]],"") -> Spinnweben saugen
A186: =IFERROR(Tabelle1[[#This Row],[Aufgabe]],"") -> Staub wischen
A187: =IFERROR(Tabelle1[[#This Row],[Aufgabe]],"") -> Türen und Klinken putzen
A188: =IFERROR(Tabelle1[[#This Row],[Aufgabe]],"") -> Wohnung lüften
A189: =IFERROR(Tabelle1[[#This Row],[Aufgabe]],"") -> Badezimmerteppich waschen
A190: =IFERROR(Tabelle1[[#This Row],[Aufgabe]],"") -> Bettwäsche wechseln
A191: =IFERROR(Tabelle1[[#This Row],[Aufgabe]],"") -> Bügeln
A192: =IFERROR(Tabelle1[[#This Row],[Aufgabe]],"") -> Handtücher wechseln
A193: =IFERROR(Tabelle1[[#This Row],[Aufgabe]],"") -> Schmutzwäsche einsammeln
A194: =IFERROR(Tabelle1[[#This Row],[Aufgabe]],"") -> Wäsche in den Schrank räumen
A195: =IFERROR(Tabelle1[[#This Row],[Aufgabe]],"") -> Wäsche waschen
A196: =IFERROR(Tabelle1[[#This Row],[Aufgabe]],"") -> 
A197: =IFERROR(Tabelle1[[#This Row],[Aufgabe]],"") -> 
A198: =IFERROR(Tabelle1[[#This Row],[Aufgabe]],"") -> 
A199: =IFERROR(Tabelle1[[#This Row],[Aufgabe]],"") -> 
A200: =IFERROR(Tabelle1[[#This Row],[Aufgabe]],"") -> 
... 100 more rows
